{"text_format":"1","workbook":"xlsx","n_sheets":15,"sheets":["QBDProperties","Allgemeine Projektangaben","Deckblatt","Inhalt des PPF-Berichts","Prüfergebnisse Blatt 1","Soll-Ist Vergleich","Musterauftrag","Zeichnung","Verlinkungen","MFU","Lng","Drop Down","Zukaufteile Datenblatt","Zukaufteile Tabelle","Anlage zu Werkstoff"],"not_rendered":{"charts":2,"images":2,"macros":1,"external_links":1,"defined_names":261,"comments":0,"pivot_tables":0},"unopened":[],"bounds":{"document_bytes":16777216,"sheet_cells":100000,"rows_first":2000,"rows_last":500,"rows_between":2000,"halvings":0,"cell_chars":16384,"cell_head_chars":4096},"cells_cut":0,"cells_raw":0,"read":"whole","date_system":"1900"}

{"sheet":"QBDProperties","index":0,"n_rows":174,"n_cols":1,"rows_kept":174,"cut":false,"hidden":true,"merged":[]}
["Produktsparte = ; Sprache = Deutsch; Sprache = English; Standort = "]
["---"]
["Deutsch; English"]
["---"]
["---"]
["25.01.2022"]
["--FirmenLogo--"]
["25.01.2022"]
["Gandhi, Vicky"]
["Gandhi, Vicky 25.01.2022;   "]
["3.4 - Vorlagen Bereich"]
["Vorlagen Bereich"]
[3.4]
["3.3W > QM\\Erstbemusterung (QM-EM)\\Vorlagen Bereich"]
["3.3W\\Erstbemusterung\\Vorlagen"]
[1]
["3.4.1"]
["---"]
["---"]
["Ziegler, Rainer\t\r\t\t"]
["---"]
["25.01.2022"]
["---"]
["---"]
["---"]
["---"]
["07.12.2016"]
["Migration aus MSLDS"]
["Migration aus MSLDS 07.12.2016;   "]
["25.01.2022"]
["Burkardt, Nathalie"]
["Burkardt, Nathalie 25.01.2022; Qualitätsplanung  "]
["25.01.2022 11.03.0013 In Einführung Burkardt, Nathalie; 25.01.2022 11.03.0013 Freigegeben Burkardt, Nathalie; 25.01.2022 11.03.0013 In Freigabe Burkardt, Nathalie; 25.01.2022 11.02.0012 Zurückgewiesen Burkardt, Nathalie; 25.01.2022 11.02.0012 In Freigabe Gandhi, Vicky; 25.01.2022 11.02.0012 In Überarbeitung Gandhi, Vicky; 25.01.2022 11.01.0010 Zurückgewiesen Burkardt, Nathalie; 25.01.2022 11.01.0010 In Freigabe Gandhi, Vicky; 25.01.2022 11.01.0010 In Überarbeitung Gandhi, Vicky; 25.01.2022 11.00.0008 Zurückgewiesen Burkardt, Nathalie; 25.01.2022 11.00.0008 In Freigabe Gandhi, Vicky"]
["25.01.2022 11.03.0013 In Einführung Burkardt, Nathalie; 25.01.2022 11.03.0013 Freigegeben Burkardt, Nathalie; 25.01.2022 11.03.0013 In Freigabe Burkardt, Nathalie; 25.01.2022 11.02.0012 Zurückgewiesen Burkardt, Nathalie; 25.01.2022 11.02.0012 In Freigabe Gandhi, Vicky; 25.01.2022 11.02.0012 In Überarbeitung Gandhi, Vicky; 25.01.2022 11.01.0010 Zurückgewiesen Burkardt, Nathalie; 25.01.2022 11.01.0010 In Freigabe Gandhi, Vicky; 25.01.2022 11.01.0010 In Überarbeitung Gandhi, Vicky; 25.01.2022 11.00.0008 Zurückgewiesen Burkardt, Nathalie; 25.01.2022 11.00.0008 In Freigabe Gandhi, Vicky; 10.01.2022 10.00.0015 In Überarbeitung Gandhi, Vicky; 02.12.2021 10.00.0015 Eingeführt Ziegler, Rainer; 02.12.2021 10.00.0015 In Einführung Ziegler, Rainer; 02.12.2021 10.00.0015 Freigegeben Ziegler, Rainer; 02.12.2021 10.00.0015 In Freigabe Gandhi, Vicky; 08.11.2021 9.01.0025 In Überarbeitung Gandhi, Vicky; 04.08.2021 9.01.0025 Eingeführt Burkardt, Nathalie; 04.08.2021 9.01.0025 In Einführung Burkardt, Nathalie; 04.08.2021 9.01.0025 Freigegeben Burkardt, Nathalie; 04.08.2021 9.01.0025 In Freigabe Burkardt, Nathalie; 04.08.2021 9.01.0025 In Überarbeitung Burkardt, Nathalie; 04.08.2021 9.00.0023 Zurückgewiesen Burkardt, Nathalie; 04.08.2021 9.00.0023 In Freigabe Burkardt, Nathalie; 03.08.2021 9.00.0014 In Überarbeitung Gandhi, Vicky; 03.08.2021 9.00.0014 In Freigabe Gandhi, Vicky; 03.08.2021 9.00.0011 In Überarbeitung Gandhi, Vicky; 03.08.2021 9.00.0011 In Freigabe Gandhi, Vicky; 30.07.2021 8.00.0001 In Überarbeitung Gandhi, Vicky; 30.07.2021 8.00.0001 Eingeführt Burkardt, Nathalie; 30.07.2021 8.00.0001 In Einführung Burkardt, Nathalie; 30.07.2021 8.00.0001 Freigegeben Burkardt, Nathalie; 30.07.2021 8.00.0001 In Freigabe Burkardt, Nathalie; 30.07.2021 7.00.0005 In Überarbeitung Burkardt, Nathalie; 30.07.2021 7.00.0005 Eingeführt Burkardt, Nathalie; 30.07.2021 7.00.0005 In Einführung Burkardt, Nathalie; 30.07.2021 7.00.0005 Freigegeben Burkardt, Nathalie; 30.07.2021 7.00.0005 In Freigabe Burkardt, Nathalie; 30.07.2021 6.00.0024 In Überarbeitung Burkardt, Nathalie; 29.07.2021 6.00.0024 Eingeführt Ziegler, Rainer; 29.07.2021 6.00.0024 In Einführung Ziegler, Rainer; 29.07.2021 6.00.0024 Freigegeben Ziegler, Rainer; 29.07.2021 6.00.0024 In Freigabe Huonker, Berthold; 19.07.2021 5.00.0008 In Überarbeitung Gandhi, Vicky; 11.06.2021 5.00.0008 Eingeführt Ziegler, Rainer; 11.06.2021 5.00.0008 In Einführung Ziegler, Rainer; 11.06.2021 5.00.0008 Freigegeben Ziegler, Rainer; 11.06.2021 5.00.0008 In Freigabe Huonker, Berthold; 11.06.2021 5.00.0007 In Überarbeitung Huonker, Berthold; 10.06.2021 5.00.0007 In Freigabe Huonker, Berthold; 10.06.2021 5.00.0005 In Überarbeitung Huonker, Berthold; 10.06.2021 5.00.0005 In Freigabe Huonker, Berthold; 10.06.2021 5.00.0003 In Überarbeitung Huonker, Berthold; 10.06.2021 5.00.0003 In Freigabe Huonker, Berthold; 10.06.2021 4.00.0002 In Überarbeitung Huonker, Berthold; 10.06.2021 4.00.0002 Eingeführt Ziegler, Rainer; 10.06.2021 4.00.0002 In Einführung Ziegler, Rainer; 10.06.2021 4.00.0002 Freigegeben Ziegler, Rainer; 10.06.2021 4.00.0002 In Freigabe Huonker, Berthold; 10.06.2021 3.00.0002 In Überarbeitung Huonker, Berthold; 15.08.2019 3.00.0002 Eingeführt Fromberg, Uwe; 15.08.2019 3.00.0002 In Einführung Fromberg, Uwe; 11.09.2018 3.00.0002 Eingeführt Ziegler, Rainer; 11.09.2018 3.00.0002 In Einführung Ziegler, Rainer; 11.09.2018 3.00.0002 Freigegeben Ziegler, Rainer; 11.09.2018 3.00.0002 In Freigabe Huonker, Berthold; 11.09.2018 2.00.0001 In Überarbeitung Huonker, Berthold; 29.03.2018 2.00.0001 Eingeführt Ziegler, Rainer; 29.03.2018 2.00.0001 In Einführung Ziegler, Rainer; 29.03.2018 2.00.0001 Freigegeben Ziegler, Rainer; 29.03.2018 2.00.0001 In Freigabe Hirschfeld, Nicole; 29.03.2018 1.00.0002 In Überarbeitung Hirschfeld, Nicole; 30.10.2017 1.00.0002 Eingeführt Ziegler, Rainer; 30.10.2017 1.00.0002 In Einführung Ziegler, Rainer; 30.10.2017 1.00.0002 Freigegeben Ziegler, Rainer; 26.10.2017 1.00.0002 In Freigabe Hirschfeld, Nicole; 26.10.2017 1.00.0001 In Überarbeitung Hirschfeld, Nicole; 26.10.2017 1.00.0001 In Freigabe Hirschfeld, Nicole; 26.10.2017 1.00.0000 In Überarbeitung Hirschfeld, Nicole; 19.04.2017 1.00.0000 In Freigabe Schweigert, Michael; 07.12.2016 1.00.0000 Neu Migration aus MSLDS"]
["Wohlleben, Tim; Grözinger, Federico; Himmer, Ursula; Gandhi, Vicky"]
["Ziegler, Rainer; Huonker, Berthold; Pfaff, Susann; Freund, Andreas; Gomringer, Thomas; Klinger, Olaf; Payo, Alexander; Wohlleben, Tim; Grözinger, Federico; Himmer, Ursula; Gandhi, Vicky; CAQ_QBD_Key-User; Geschäftsführung"]
["Wohlleben, Tim; Grözinger, Federico; Himmer, Ursula; Gandhi, Vicky"]
["Freigabe systembedingt durch CAQ Admin notwendig, mit Hr. Ziegler abgestimmt"]
["Fromberg, Uwe; Buss, Helena; Pfaff, Susann; Harsch, Thomas; Zahri, Ahmed; Aberle, Rolf; Thomsen, Christine; Ziegler, Rainer; Huonker, Berthold; Fersi, Chaima; Scheffel, Vera; Gandhi, Vicky; Cramer, Maximilian; Hirschfeld, Nicole; Dorn, Ulrike; Fritzsche, Mathias; Motsch, Arno; Rupar, Leon; Schmid, Timo; Schuldner, Maria; Stegmüller, Silke; Streicher, Daniel; Blaschi-Huber, Ingrid; Fritschi, Felix; Haug, Ulrike; Pau, Brigitte; Scholz, Simon; Schwarz, Myriam; Selinger, Andrea; Toy, Pinar; Beck, Andreas; Cvetkov, Aleksandar; Dillinger, Kevin; Eha, Sina; Friesen, Jan; Gabler, Mathias; Hartmann, Matthias; Hermann, Jan; Jaeckle, Philipp; Kauschwitz, Marco; Keil, Willi; Mattes, Gerhard; Mauch, Manuel; Möck, Oliver; Moser, Wolfgang; Papenfuss, David; Pfaff, Michael; Rüb, Oxana; Schaudt, Michael; Schinocca, Basilio; Siebert, David; Spreitzer, Wolfgang; Spreter, Michael; Steiner, Florian; Tribelhorn, Michael; Weiss, Stefan; Demaschkin, Tanja; Erdem, Musab; Fischer, Jochen; Marquardt, Joachim; Nieswandt, Michael; Pushpagiri, Nikhil; Schätzle, Jens; Schefner, Walter; Schneckenburger, Steffen; Schneider, Andreas; Schweizer, Thorsten; Stehle, Alexander; Tack, Reinhold; Weber, Egon; Vincze, Patrick; Spreitzer, Eduard; Spreitzer, Patrick; Geier, Viktor; Michel, Harry; Spreitzer, Martin; Stöß, Jürgen; Vasilev, Vladimir; Zimmermann, Michael; Gerdes, Tobias Lukas; Leibinger, Denis; Schaak, Joachim; Streif, Markus; Caruso, Massimo; Domachowski, Waldemar; Fritz, Iew; Hartmann, Marcel; Lovecchio, Francesco; Masovic, Fahret; Mezianili, Mohand; Sassu, Luciano; Sassu, Maria; Sisto, Brigitte; Sisto, Josef; Saffrin, Rebekka; Böhler, Alexander; Buss, Alexander; Buss, Siegfried; Dorn, Andreas; Duttenhöfer, Alexander; Faulhaber, Thomas; Fischer, Heinrich; Götz, Christoph; Hermle, Christoph; Hudjakow, Wladimir; Kosicki, Sebastian; Künstel, Bernhard; Kunz, Sigmund; Pfenning, Albrecht; Pfenning, Matthias; Quinger, Sebastian; Rachini, Martin; Rau, Volker; Reiner, Karl; Rocco, Salvatore; Salatovic, Slaven; Schaudt, Manfred; Schmalhofer, Klaus; Schneckenburger, Katrin; Schwägler, Tamara; Stolyarov, Nikolay; Tefenlili, Osman; Utech, Chiara; Walz, Johannes; WZB-Azubi; Hafen, Manuela; Hugger, Susanne; Kohler, Lukas; Kandlin, Kerstin; Lakay, Thomas; Uttke, Petra; Gomringer, Thomas; Hagen, Christian; Kedikli, Zueleyha; Klinger, Olaf; Rauschke, Achim; Simmerer, Patrick; Ziechner, Rene; Dreher, Daniel; Faißt, Magnus; Frank, Patrick; Johannes, Pfenning; Wollmann, Fabian; Bürkle, Ulrich; Schüler-RW; Di Cataldo, Daniele; Ermisch, Maxim; Hoffmann, Jan; Pilz, Jens; Werner, Eugen; Bastuglu, Mustafa; Budaker, Michael; Elikara, Galip; Güngör, Muhterem; Holzmann, Helena; Krauber, Elsa; Locurcio, Leonardo; Nadezkin, Olga; Öztas, Ali Ihsan; Stolz, Andreas; Walender, Inna; Willmann, Elena; Bauer, Thomas; Grathwohl, Patrick; Celen, Orhan; Özdemir, Ramazan; Stanzerei; Rauchfuss, Sören; Stanzerei; Würfel, Andre; Dorusch, Manfred; Frank, Robert; Hafen, Barbara; Hakenmüller-Maute, Carmen; Koehle, Michael; Merkt, Doris; Mohr, Johannes; Ott, Kristina; Trusso, Andrea; Bach, Thomas; Betriebsrat; Blaschi, Manuela; Dieter, Alexander; Duerksen, Alexander; Elektronik; Eppler, Peter; Jerhof, Magdalena; Lamp, Andreas; Mair, Michael; Mauch, Helga; Natale, Tiziana; Nikiforowa, Valentina; Palazzo, Daniele; Schaub, Alexander; Schenk, Friedrich; Hohmann, Barbara; Stoehr, Mike; Tantarean, Alina; Weiß, Ralf; Woppowa, Manfred; Zick, Olga; Zweigart, Veronika; Hafner, Thomas; Münch, Marcus; Schmelz, Rainer; Solowjow, Sergej; Haile, Jennifer; Sisto, Tina; Test-User, Anton; Rutha, Monika; Lord, Andy; Weinmann, Bernhard; Louis, Alexander; Freund, Andreas; Müller, Peter; Ohnmacht, Jonathan; Dederer, Andreas; Frank, Alina; Müller, Alexander; Wittich, Vitali; Girrbach, Madeleine; Schweigert, Michael; magnete; Gruner, Alle; QM, Karl; Erhard, Alexander; Krüger, Rainer; Lier, Waldemar; Repina, David; Sauter, Irina; Erdmann, Waldemar; Mattes, Raphael; Payo, Alexander; Hohlov, Elena; Tinas, Osman; Börcsök, Daniel; Fronius, Alice; Stier, Bianca; Schulz, Linda; Buss, David; Fischinger, Pascal; Eisener, Daniel; Hofgärtner, Jessica; Aktamirov, Musa; Zaka, Adnan; Gorgievski, Dalibor; Schwald, Marco; Hess, Katrin; Patel, Chirag; Daitche, Peter; Geyer, Sarah; Schemminger, Tobias; Ziegler, Dominic; Eberhardt, Jürgen; Okkuscu, Gulsüm; Müller, Jochen; Bryszewski, Maciej; Seeburger, Lisa; Weidmann, Dominik; Weiß, David; Woppowa, Alissa; Hipp, Martina; Ettwein, Markus; Burkardt, Nathalie; Melnikov, Nikolai; Ritter, Manuela; Berger, Simone; Drews, Paul; Makram, Abanob Nagy; Morales, Hermann; Rauschke, Patrik; Lang, Barbara; Huber, Kevin; Janosch, Fabian; Günthner, Marlene; Wohlleben, Tim; Bernhart, Holger; Sauter, Carsten; Schoffit, Justin; Fischer, Lukas; Kilic, Tugba; Koch, Joana; Polovoj, Marcel; Toth, Johannes; Morlok, Marius; Pauly, Michael; Hogh, Armin; Killmaier, Marc; Kovacevic, Milos; Veeser, Claudia; Nowoczyn, Michael; Stutz, Robert; Fuhr, Alla; Villing, Dominik; Schreiner, Johann; Wagner, Marc; Seifer, Steffen; Yildirim, Burak; Georgievski, Kire; Ramsperger, Michael; Merker, Anna; Eppler, Tobias; Junge, Philipp; Roletor, Martin; Sisto, Sandro; Sisto, Sergio; Budak, Murat; Paweloszek, Robert Piotr; Özgen, Hava; Bergmann, Sven; Bantle, Kathinka; Döberin, Jürgen; Fischer, Alexander; Buecherer, Marco; Grözinger, Federico; Hogh, Carmen; Himmelsbach, Julia; Siramy, Daniel; Bölke, Jens; Buehler, Erik; Yammanuru, Sarayu; Durau, Kristina; Esch, Ann-Kathrin; Nill, Dominik; Grundig, Damian; Polovoj, Edgar; Welte, Bianka; Holzmann, Kevin; Keles, Kemal; Klemm, Jennifer; Link, Daniel; Rappel, Matthias; Birnbreier, Melanie; Reger, Giuseppina; Andreoli, Lisa; Etzold, Mike; Springer, Manuel; Volz, Marcel; Baumli, Jannis; Digeser, Steffen; Grimm, Noah; König, Anja; Waeschle, Vanessa; Biletic, Igor; Gaeckle, Nadine; Kenf, Lena; Schweizer, Martin; Weinmann, Stefanie; Koch, Tamara; Wehrle, Eric; Jeroch, Rony; Binngießer, Edeltraud; Himmer, Ursula; Mattes, Johanna; Schaub, Marc-Kevin; Maute, Kai; Seidel, Paul; Pilz, Denis; Mehler, Alexander; Esch, Miriam; Heer, Bianca; Nama, Yogesh; Usak, Beyce; Wolf, Arnold; Mazzeo, Sevgi; Demir, Kerem; Greger, Samuel; Schreiber, Tim; Solmen, Lucas; Grathwohl, Sonja; Gimpl, David; Hetzel, Randolf; Hielscher, Jacqueline; Schopf, Nick; EK-S, Praktikum; Betz, Ramona; Catanzaro, Stefano; Flatzek, Andreas; Angst, Hannes; Boch, Markus; Rieger, Jan; Zimmermann, Magdalena; Janke, Larissa; Grad, Matthias; Müller, Dennis; Neu, Rebecca; Bosnjak, Ana; Blessing, Johannes; Giantomasi, Emanuele; Porzelski, Karol; Hochweiss, Swetlana; Aliu, Valerio; Eremeev, Max; Hermle, Konstantin; Kraft, Finn; Morales, Lauren; Rezai, Abdullah; Traub, Alexander; Ryzov, Vladimir; Sergeev, Sven; Maier, Maik; Engl, Alexandra; Fried, Lydia; Meret, Eugenia; Rehfeld, Rita; Schulz, Elfriede; Siebert, Helena; Sik, Olessia; Sommer, Olga; Stadel, Edgard; Volkov, Wladimir; Werner, Alexander; Willmann, Natalie; Ziaja, Nevena; Herrmann, Annika; Weinmann, Rene; Heuler, Waltraud; Sekac, Tibor; Vogt, Carolin; Nurzynski, Robert; Test, Corona; Krasser, Claudia; Becker, Elsa; Schumacher, Katharina; Bleile, Galina; Blum, Hermina; Bohland, Gabi; Bohner, Josef; Busch, Nathalie; Buss, Lena; Celen, Nurguel; Deines, Rosa; Demirtas, Hakan; Deter, Swetlana; Dreher, Gabriele; Duerksen, Justin; Dunin-Brilz, Elisabeth; Fechner, Jeanette; Fink, Alexander; Fritz, Rosalinde; Gass, Florian; Ginter, Johannes; Golea, Nora; Guadagnino, Rosaria; Hagmann, Frank; Heidt, Vera; Hermann, Angelika; Hermle, Marlene; Holz, Olga; Huber-Weremej, Irina; Kabasakaloglu, Mustafa; Kaiser, Emma; Kammerzell, Natali; Kanjo, Claudia; Kilic, Recep; Klimek, Christoph; Knack, Olga; Koreskov, Oksana; Krall, Martin; Kunduraci, Mahmut; Kurtinaityte, Deimate; Kwasniewicz, Anna; Latajka, Elisabeth; Likos, Sueleyman; Mattes, Nicole; Meret, Claudia; Muschke, Martina; Nikiforow, Nikolai; Pleis, Irina; Probst-Boldt, Elisabeth; Ramic, Anette; Reiter, Svenja; Rossoni, Franziska; Sassu, Sabine; Schmalhofer, Gabriele; Schmidt, Anna; Schmidt, Ida; Schuschakow, Eugen; Schuschakow, Julia; Seidel, Lidia; Sienicz, Roch-Christof; Solowjow, Vera; Stancul, Claudia-Maria; Taghizadeh-Sarabi, Yousef; Toscano, Fabio; Van, Valetina; Vasiljevic, Daniela; Volz, Egon; Walender, Olga; Weinmann, Makwira; Wittich, Irene; Zikidis, Konstantinos; Zimmermann, Natalia; Grötzinger, Evelyn; Manthei, Viktor; Mirza, Basharat; EKS, Praktikant1; EKS, Praktikant2; Vaccani, Anastasia; Heinemann, Bianca; Latajka Jacqueline, Jacqueline; Test, Migrate; Test2, Migrate; Kraiczy, Beate; Schiller, Ida; Dreikluft, Mareike; Friedrich, Michael; Rekla, Markus; Stark, David; Stallmann, Nicole; Turino, Adrian; Flatau, Janik; Mrzic, Nemanja; Rupp, David; Zito, Devin; Keskinsoy, Can; Scheunig, Christian; Test, Kosicki; Roigk, Vanessa; Kosicki, Fabian; Rössler, Andreas; Test, CO; Träger, Sandra; Sabo, Nikolaj; Gass, Miguel; Bonfanti, Damiano; Marquart, Janina; Schnekenburger, Manuel; Miller, Tatjana; Mladenovic, Predrag; Rihani, Nabil; Zunic, Jovana; Dedovic, Radomir; AOI; Arandjelovic, Nenad; Davinic, Bojan; Djokic, Jelica; Dorada; Energetski-releji; ESD; Golubovic, Dragana; Ignjatovic, Milan; Ilic, Nenad; Jovanovic, Milos; Jovic, Boban; Kalemovi; Kontrola; Kontrola2; Kontrola3; Milenovic, Milena; Miljkovic, Bojan; Momcilovic, Milos; Nikolic, Jelena; Pesic, Ana; Pesic, Marija; Popovic, Danijela; Poslovodje; Poslovodje2; Proizvodnja; Proizvodnja-750; Proizvodnja-751&704; Rajkovic, Igor; Simic, Irena; Spule; Stankovic, Milan; Stankovic, Vladica; Stanojevic, Miljana; Stojicic, Tomislav; Tomic, Andrijana; Ulazna Kontrola; Veljkovic, Stojana; Kostic, Branislava; Petkovic, Aleksandra; Tasic, Marko; Mitrovic, Dragan; Djordjevic, Dragan; Ilic, Sasa; Djokic, Aleksandar; Radulovic, Sasa; Mladenovic, Milena; Nikolic2, Jelena; Ilic, Milena; Bankovic, Nemanja; Pesic, Vladica; Magacin GS; Stamenkovic, Aleksandar; Stojanovic, Jelena; Djuric, Miodrag; Mladenovic, Danijel; Djordjevic, Marija; Poslovodje755h; Stamenkovic, Andjelija; Davinic, Zaklina; Milenkovic, Milos; Mladenovic, Milan; Simonovic, Bojan; Stamenkovic, Danijela; Poslovodje3; Stanojevic, Vladimir; Tasic, Milos; Kocic, Aleksandar; Kostadinovic, Ivana; Serbiandoo, Gruner; Stojanovic, Milica; Marjanovic, Aleksandar; Cvetkovic, Stefan; Serbia, Nabavka; Todorovic, Danijela; Susulic, Vlada; 1, Kontrola; Krstic, Ivana; Stojanovic, Dejan; Stojilkovic, Dragan; Rancic, Jovana; Nicic, Milijana; Stankovic, Sanja; Jovanovic, Danijel; Ivkovic, Maja; Zdravkovic, Milos; Ilic, Biljana; Nikolic, Slobodan; Dedovic, Dusan; Vukomanovic, Borisav; Milosevic, Nikola; Todorovic, Marko; Stojiljkovic, Milos; Aleksiic, Boris; Cvetkovic, Maja; Djokic, Emina; Todorovic, Biljana; Stojanovic, Natasa; Marinkovic, Mariola; Dimitrijevic, Dragan; Garcic, Aleksandar; Kostic, Stefan; TEST, SRB; Kocic, Aleksandar1; Stankovic, Milan Radivoje; Jovic, Ivica; Andjelkovic, Vladimir; Djokic, Milos; Djokic, Nikola; Kocic, Aleksandar2; Mitkov, Nemanja; Stojiljkovic, Danilo; Markovic, Dusan; Tasic, Dijana; Milosevic, Dusan; Golubovic, Katarina; Abaidi, Riadh; Chaabane, Zied; el Melki, Khira; Messaoudi, Ahmed; Mouria, Abdessalem; Riahi, Anis; T-Relais790; Ben Moussa, Mariem; Aloui, Aymen; Relais790; Technik.Tun; Wartung.Tun; Tun2, Technik; Kouki, Refka; Hayouni, Monia; Abaidi, Sondes; Ferchichi, Khaoula; Hajjem, Nesrin; Chlouk, Asma; Noueili, Leila; Rechnung.Tunis; Arfaoui, Shayma; Ayari, Nizar; Hamdaoui, Feten; Riahi, Ameur; Elmejri, Dorra; Hasnaoui, Amal; Chroudi, Sameh; Smei, Ramzi; Bellaj, Hatem; Chaabane, Khouloud; Harhouri, Bilel; Ghrissi, Imen; Guesmi, Sihem; Hammemi, Kaouther; Ksibi, Hassen; Rahmi, Aymen; Smiti, Najib; Achour, Mohamed Ali; Ben Chrouda, Bakhta; Mekni, Sarra; Ouertani, Mourad; Mediouni, Oussama; Tamraoui, Khaoula; Ben Amara, Oussama; Dhaouadi, Omar; Mezni, Abdelwahed; Wertani, Sondes; Gharbi, Soumaya; Ismaili, Khaoula; Rezgui, Maroua; Mathlouthi, Ahlem; Nasri, Noura; Hkiri, Hanen; Chalwati, Marwa; Jleili, Dalila; Kahlaoui, Wafa; Marwani, Kawther; Mlewhi, Dhekra; Abidi, Wassila; Mejri, Amal; Jbeli, Yossri; Nabli, Hamza; Marzouk, Yosra; Mejri, Safa"]
["Fromberg, Uwe; Buss, Helena; Pfaff, Susann; Harsch, Thomas; Zahri, Ahmed; Aberle, Rolf; Thomsen, Christine; Ziegler, Rainer; Huonker, Berthold; Fersi, Chaima; Scheffel, Vera; Gandhi, Vicky"]
["Fromberg, Uwe; Buss, Helena; Pfaff, Susann; Harsch, Thomas; Zahri, Ahmed; Aberle, Rolf; Thomsen, Christine; Ziegler, Rainer; Huonker, Berthold; Fersi, Chaima; Scheffel, Vera; Gandhi, Vicky; Alle in Wehingen; CAQ_QBD_Key-User; Mitarbeiter Serbien; Mitarbeiter Tunis"]
["Fromberg, Uwe; Buss, Helena; Pfaff, Susann; Harsch, Thomas; Zahri, Ahmed; Aberle, Rolf; Thomsen, Christine; Ziegler, Rainer; Huonker, Berthold; Fersi, Chaima; Scheffel, Vera; Gandhi, Vicky"]
["25.01.2022"]
["Burkardt, Nathalie"]
["Burkardt, Nathalie 25.01.2022; Qualitätsplanung  "]
["---"]
["Ziegler, Rainer; Burkardt, Nathalie; Spreitzer, Wolfgang; Spreitzer, Patrick; Spreitzer, Martin"]
["Ziegler, Rainer; Burkardt, Nathalie"]
["Ziegler, Rainer; Burkardt, Nathalie; Geschäftsführung"]
["Ziegler, Rainer; Burkardt, Nathalie"]
["Burkardt, Nathalie 25.01.2022; Qualitätsplanung  "]
["---"]
["---"]
["---"]
["---"]
["---"]
["---"]
["---"]
["---"]
["---"]
["Aberle, Rolf; Buss, Helena; Fersi, Chaima; Fromberg, Uwe; Gandhi, Vicky; Harsch, Thomas; Huonker, Berthold; Pfaff, Susann; Scheffel, Vera; Thomsen, Christine; Zahri, Ahmed; Ziegler, Rainer"]
["Aberle, Rolf 25.01.2022; Erstbemusterung  ; Buss, Helena 25.01.2022; Qualitätsplanung  ; Fersi, Chaima 25.01.2022; Quality  ; Fromberg, Uwe 25.01.2022; Qualitätsmanagementbeauftragter  ; Gandhi, Vicky 25.01.2022;   ; Harsch, Thomas 25.01.2022; Erstbemusterung  ; Huonker, Berthold 25.01.2022; Erstbemusterung  ; Pfaff, Susann 25.01.2022;   Gruner AG; Scheffel, Vera 25.01.2022;   ; Thomsen, Christine 25.01.2022; Erstbemusterung  ; Zahri, Ahmed 25.01.2022; Erstbemusterung  ; Ziegler, Rainer 25.01.2022;   "]
["Burkardt, Nathalie"]
["Burkardt, Nathalie 25.01.2022; Qualitätsplanung  "]
["CurrentVersion"]
["Dokument 3.4.1 - FB EMPB"]
[855]
[705]
[15]
[11]
["11.03.0013"]
[11]
["12.01.007.33"]
["---"]
["---"]
["---"]
["---"]
["---"]
["---"]
["3.3W > QM"]
["FB EMPB"]
["DOC-16-00474"]
["---"]
["FB Formblatt"]
["Ziegler, Rainer"]
["11.03.0013"]
["Ziegler, Rainer; Huonker, Berthold; Pfaff, Susann; Freund, Andreas; Gomringer, Thomas; Klinger, Olaf; Payo, Alexander; Wohlleben, Tim; Grözinger, Federico; Himmer, Ursula; Gandhi, Vicky; Buss, Helena; Fromberg, Uwe; Mladenovic, Predrag; Rihani, Nabil; Zunic, Jovana; Spreitzer, Wolfgang; Spreitzer, Patrick; Spreitzer, Martin"]
["---"]
["---"]
["Burkardt, Nathalie"]
["25.01.2022"]
["25.01.2022"]
["---"]
["11.06.2021"]
["--FirmenLogo--"]
["08.06.2021"]
["Burkardt, Nathalie"]
["Burkardt, Nathalie 08.06.2021; Qualitätsplanung  "]
["1 - Allgemein deutsch"]
["Allgemein deutsch"]
[1]
["Dokumentenvorlagen QBD\\Allgemein deutsch"]
["Dokumentenvorlagen\\Allgemein"]
[4]
[1.4]
["---"]
["---"]
["Hirschfeld, Nicole\t\rUmweltmanagementbeauftragte\t\t"]
["---"]
["11.06.2021"]
["---"]
["---"]
["---"]
["---"]
["01.12.2016"]
["Hirschfeld, Nicole"]
["Hirschfeld, Nicole 01.12.2016; Umweltmanagementbeauftragte  "]
["28.09.2021"]
["Burkardt, Nathalie"]
["Burkardt, Nathalie 28.09.2021; Qualitätsplanung  "]
["11.06.2021 6.00.0001 Eingeführt Burkardt, Nathalie; 11.06.2021 6.00.0001 In Einführung Burkardt, Nathalie"]
["11.06.2021 6.00.0001 Eingeführt Burkardt, Nathalie; 11.06.2021 6.00.0001 In Einführung Burkardt, Nathalie; 11.06.2021 5.00.0001 In Überarbeitung Burkardt, Nathalie; 10.06.2021 5.00.0001 Eingeführt Burkardt, Nathalie; 10.06.2021 5.00.0001 In Einführung Burkardt, Nathalie; 08.06.2021 4.00.0001 In Überarbeitung Burkardt, Nathalie; 22.04.2020 4.00.0001 Eingeführt Burkardt, Nathalie; 22.04.2020 4.00.0001 In Einführung Burkardt, Nathalie; 22.04.2020 4.00.0001 Eingeführt Burkardt, Nathalie; 22.04.2020 4.00.0001 In Einführung Burkardt, Nathalie; 22.04.2020 3.00.0001 In Überarbeitung Burkardt, Nathalie; 22.04.2020 3.00.0001 Eingeführt Burkardt, Nathalie; 22.04.2020 3.00.0001 In Einführung Burkardt, Nathalie; 17.03.2020 2.00.0001 In Überarbeitung Burkardt, Nathalie; 21.09.2017 2.00.0001 Eingeführt Hirschfeld, Nicole; 21.09.2017 2.00.0001 In Einführung Hirschfeld, Nicole; 19.09.2017 1.00.0012 In Überarbeitung Hirschfeld, Nicole; 28.06.2017 1.00.0012 Eingeführt Hirschfeld, Nicole; 28.06.2017 1.00.0012 In Einführung Hirschfeld, Nicole; 28.06.2017 1.00.0011 In Überarbeitung Hirschfeld, Nicole; 28.06.2017 1.00.0011 Eingeführt Hirschfeld, Nicole; 28.06.2017 1.00.0011 In Einführung Hirschfeld, Nicole; 28.06.2017 1.00.0007 In Überarbeitung Hirschfeld, Nicole; 11.04.2017 1.00.0007 Eingeführt Hirschfeld, Nicole; 11.04.2017 1.00.0007 In Einführung Hirschfeld, Nicole; 11.04.2017 1.00.0006 In Überarbeitung Hirschfeld, Nicole; 13.03.2017 1.00.0006 Eingeführt Hirschfeld, Nicole; 13.03.2017 1.00.0006 In Einführung Hirschfeld, Nicole; 13.03.2017 1.00.0005 In Überarbeitung Hirschfeld, Nicole; 05.12.2016 1.00.0005 Eingeführt Hirschfeld, Nicole; 05.12.2016 1.00.0005 In Einführung Hirschfeld, Nicole; 05.12.2016 1.00.0003 In Überarbeitung Hirschfeld, Nicole; 05.12.2016 1.00.0003 Eingeführt Hirschfeld, Nicole; 05.12.2016 1.00.0003 In Einführung Hirschfeld, Nicole; 05.12.2016 1.00.0001 In Überarbeitung Migration aus MSLDS; 01.12.2016 1.00.0001 Eingeführt Hirschfeld, Nicole; 01.12.2016 1.00.0001 In Einführung Hirschfeld, Nicole; 01.12.2016 1.00.0000 Neu Hirschfeld, Nicole"]
["---"]
["CAQ Admin Fachbereich"]
["CAQ Admin Fachbereich"]
["---"]
["Fersi, Chaima; Wohlleben, Tim; Buss, Helena; Fromberg, Uwe; Mladenovic, Predrag; Rihani, Nabil; Zunic, Jovana; Hirschfeld, Nicole; Burkardt, Nathalie; Hetzel, Randolf"]
["---"]
["Fersi, Chaima; Wohlleben, Tim; CAQ_QBD_Key-User; CAQ Admin Fachbereich"]
["CAQ_QBD_Key-User; CAQ Admin Fachbereich"]
["---"]
["---"]
["---"]
["---"]
["---"]
["---"]
["---"]
["---"]
["---"]
["---"]
["---"]
["---"]
["---"]
["---"]
["---"]
["---"]
["---"]
["---"]
["---"]
["---"]
["Burkardt, Nathalie"]
["Burkardt, Nathalie 11.06.2021; Qualitätsplanung  "]
[6]
["6.00.0001"]
[6]
["---"]
["---"]
["---"]
["---"]
["---"]
["---"]
["Dokumentenvorlagen QBD"]
["VQ Excel"]
["DOC-16-00360"]
["---"]
["VQ Dokumentenvorlage QBD"]
["Hirschfeld, Nicole"]
["6.00.0001"]
["Hirschfeld, Nicole; Burkardt, Nathalie; Hetzel, Randolf"]
["---"]
["---"]
["---"]
["---"]
["---"]

{"sheet":"Allgemeine Projektangaben","index":1,"n_rows":56,"n_cols":6,"rows_kept":56,"cut":false,"hidden":false,"merged":[[0,1,0,2],[0,5,1,5]]}
[" ","Allgemeine Projektangaben  EMPB",null,null,null,"Sprache / Language"]
[]
[null,"Datum, Name (Lieferant)",null,null,null,"Deutsch"]
[null,"Datum der Freigabe (Kunde)"]
[]
[null,"Kundenangaben (allgemein)"]
[null,"Kenn-Nr. Kunde:"]
[null,"Firma (Kurzbezeichnung):"]
[null,"Firma:"]
[null,"Abteilung:"]
[null,"Name:"]
[null,"Tel / E-Mail:"]
[null,"Straße / Postfach:"]
[null,"PLZ / Ort:"]
[null,"Land:"]
[null,"Sachbearbeiter:"]
[]
[null,"Kundenangaben (produktspezifisch)"]
[null,"Prüfberichts-Nr.:"]
[null,"Version:"]
[null,"Sach-Nr.:"]
[null,"Zeichnungs-Nr.:"]
[null,"Stand / Datum:"]
[null,"Änderungs-Nr.:"]
[null,"Benennung:"]
[null,"Wareneingangs-Nr. /-datum:"]
[null,"Abladestelle:"]
[]
[null,"Lieferantenangaben (allgemein)"]
[null,"Kenn-Nr. Lieferant:"]
[null,"Prüfberichts-Nr.:"]
[null,"Version:"]
[null,"Name:"]
[null,"Abteilung:"]
[null,"Tel / E-Mail:"]
[]
[null,"Lieferantenangaben (produktspezifisch)"]
[null,"Sach-Nr.:"]
[null,"Zeichnungs-Nr.:"]
[null,"Stand / Datum / Q-Stand:"]
[null,"Änderungs-Nr.:"]
[null,"Benennung:"]
[null,"Bestellabruf-Nr. /-datum:"]
[null,"Lieferschein-Nr. /-datum:"]
[null,"Liefermenge:"]
[null,"Chargen-Nr.:"]
[null,"Mustergewicht - 5 Stk. xquer [kg]:"]
[]
[null,"Verteiler:"]
[]
[]
[]
[]
[]
[]
[null,"Ablage:"]

{"sheet":"Deckblatt","index":2,"n_rows":71,"n_cols":44,"rows_kept":71,"cut":false,"hidden":false,"merged":[[6,1,6,26],[55,1,55,9],[56,1,56,9],[17,1,17,43],[38,13,38,19],[31,39,31,41],[31,21,31,22],[45,27,45,43],[45,23,45,26],[46,23,51,43],[49,10,49,22],[45,1,45,5],[32,11,32,22],[45,6,45,22],[51,15,51,22],[51,1,51,14],[70,1,70,3],[70,4,70,43],[31,42,31,43],[63,23,68,43],[66,10,66,22],[61,13,61,43],[62,27,62,43],[53,1,54,9],[62,23,62,26],[53,10,54,11],[53,12,53,43],[62,1,62,5],[57,1,57,9],[62,6,62,22],[68,1,68,14],[68,15,68,22],[63,1,63,5],[64,1,65,5],[63,6,63,22],[64,6,65,22],[67,1,67,10],[67,11,67,22],[47,6,48,22],[46,6,46,22],[46,1,46,5],[47,1,48,5],[50,1,50,10],[50,11,50,22]]}
[]
[]
[null,null,null,null,null,null,null,null,null,null,null,null,null,null,null,null,null,null,null,null,null,null,null,null,null,null," Bericht Produktionsprozess- und Produktfreigabe (PPF)"]
[null,null,null,null,null,null,null,null,null,null,null,null,null,null,null,null,null,null,null,null,null,null,null,null,null,null," Erstmusterprüfbericht VDA"]
[null,null,null,null,null,null,null,null,null,null,null,null,null,null,null,null,null,null,null,null,null,null,null,null,null,null,null,null," Bemusterungsgrund"]
[null,null,null,null,null,null,null,null,null,null,null,null,null,null,null,null,null,null,null,null,null,null,null,null,null,null,null,null,null,null,null," Erstbemusterung"]
[null,"   Gruner AG Bürglestr. 15-17  D-78564 Wehingen",null,null,null,null,null,null,null,null,null,null,null,null,null,null,null,null,null,null,null,null,null,null,null,null,null,null,null,null,null," Nachbemusterung"]
[null,null,null,null,null,null,null,null,null,null,null,null,null,null,null,null,null,null,null,null,null,null,null,null,null,null,null,null,null,null,null," Neuteil"]
[null,{"$f":"IF(ISBLANK('Allgemeine Projektangaben'!C8),\"\",CONCATENATE(\"  \",'Allgemeine Projektangaben'!C8))","v":""},null,null,null,null,null,null,null,null,null,null,null,null,null,null,null,null,null,null,null,null,null,null,null,null,null,null,null,null,null," Produktänderung"]
[null,{"$f":"IF(ISBLANK('Allgemeine Projektangaben'!C9),\"\",CONCATENATE(\"  \",'Allgemeine Projektangaben'!C9))","v":""},null,null,null,null,null,null,null,null,null,null,null,null,null,null,null,null,null,null,null,null,null,null,null,null,null,null,null,null,null," Produktionsverlagerung"]
[null,{"$f":"IF(ISBLANK('Allgemeine Projektangaben'!C10),\"\",CONCATENATE(\"  \",'Allgemeine Projektangaben'!C10))","v":""},null,null,null,null,null,null,null,null,null,null,null,null,null,null,null,null,null,null,null,null,null,null,null,null,null,null,null,null,null," Änderung von Produktionsverfahren"]
[null,{"$f":"IF(ISBLANK('Allgemeine Projektangaben'!C11),\"\",CONCATENATE(\"  \",'Allgemeine Projektangaben'!C11))","v":""},null,null,null,null,null,null,null,null,null,null,null,null,null,null,null,null,null,null,null,null,null,null,null,null,null,null,null,null,null," längeres Aussetzten der Fertigung"]
[null,{"$f":"IF(ISBLANK('Allgemeine Projektangaben'!C13),\"\",CONCATENATE(\"  \",'Allgemeine Projektangaben'!C13))","v":""},null,null,null,null,null,null,null,null,null,null,null,null,null,null,null,null,null,null,null,null,null,null,null,null,null,null,null,null,null," Änderung in der Lieferkette (neuer Lieferant)"]
[null,{"$f":"IF(ISBLANK('Allgemeine Projektangaben'!C14),\"\",CONCATENATE(\"  \",'Allgemeine Projektangaben'!C14))","v":""},null,null,null,null,null,null,null,null,null,null,null,null,null,null,null,null,null,null,null,null,null,null,null,null,null,null,null,null,null," Dokumentationspflichtes Teil"]
[null,{"$f":"IF(ISBLANK('Allgemeine Projektangaben'!C15),\"\",CONCATENATE(\"  \",'Allgemeine Projektangaben'!C15))","v":""},null,null,null,null,null,null,null,null,null,null,null,null,null,null,null,null,null,null,null,null,null,null,null,null,null,null,null,null,null," FMEA durchgeführt"]
[null,null,null,null,null,null,null,null,null,null,null,null,null,null,null,null,null,null,null,null,null,null,null,null,null,null,null,null,null,null,null," Prüfbericht sonstiger Muster"]
[]
[null,"Anlagen / Einsichtnahme"]
[null,null,"        1.1 Geometrie, Maßprüfung",null,null,null,null,null,null,null,null,null,null,null,null,null,"   3 Technische Spezifikationen",null,null,null,null,null,null,null,null,null,null,null,null," 14 Prüfmittelliste"]
[null,null,"         1.2 Funktionsprüfung",null,null,null,null,null,null,null,null,null,null,null,null,null,"   4 Produkt-FMEA",null,null,null,null,null,null,null,null,null,null,null,null," 15 Prüfmittelfähigkeitsnachweis"]
[null,null,"        1.3 Werkstoffprüfung",null,null,null,null,null,null,null,null,null,null,null,null,null,"   5 Konstruktionsfreigabe",null,null,null,null,null,null,null,null,null,null,null,null," 16 Werkzeugübersicht"]
[null,null,"        1.4 Haptikprüfung",null,null,null,null,null,null,null,null,null,null,null,null,null,"   6 Einhaltung gesetzlicher Forderungen",null,null,null,null,null,null,null,null,null,null,null,null," 17 Nachweis vereinbarte Kapazität"]
[null,null,"        1.5 Akustikprüfung",null,null,null,null,null,null,null,null,null,null,null,null,null,"   7 Materialdatenblatt/IMDS",null,null,null,null,null,null,null,null,null,null,null,null," 18 Schriftliche Selbstbewertung"]
[null,null,"        1.6 Geruchsprüfung",null,null,null,null,null,null,null,null,null,null,null,null,null,"   8 Softwareprüfbericht",null,null,null,null,null,null,null,null,null,null,null,null," 19 Teilelebenslauf"]
[null,null,"        1.7 Aussehensprüfung",null,null,null,null,null,null,null,null,null,null,null,null,null,"   9 Prozess-FMEA",null,null,null,null,null,null,null,null,null,null,null,null," 20 Eignungsnachweis Ladungsträger inkl. Lagerung"]
[null,null,"        1.8 Oberflächenprüfung",null,null,null,null,null,null,null,null,null,null,null,null,null,"  10 Prozessablaufdiagramm",null,null,null,null,null,null,null,null,null,null,null,null," 21 PPF-Status Lieferkette"]
[null,null,"        1.9 ESD – Prüfung",null,null,null,null,null,null,null,null,null,null,null,null,null,"  11 Produktionslenkungsplan",null,null,null,null,null,null,null,null,null,null,null,null," 22 Freigabe von Beschichtungssystemen"]
[null,null,"        1.10 Zuverlässigkeitsprüfungen",null,null,null,null,null,null,null,null,null,null,null,null,null,"  12 Prozessfähigkeitsnachweis",null,null,null,null,null,null,null,null,null,null,null,null," 23 Sonstiges"]
[null,null,"        2 Muster",null,null,null,null,null,null,null,null,null,null,null,null,null,"  13 Absicherung besondere Merkmale"]
[]
[null,"Kennnummer Lieferant:",null,null,null,null,null,null,null,null,null,{"$f":"IF(ISBLANK('Allgemeine Projektangaben'!C30),\"\",'Allgemeine Projektangaben'!C30)","v":""},null,null,null,null,null,null,null,null,null,null,null,"Kennnummer Kunde:",null,null,null,null,null,null,null,{"$f":"IF(ISBLANK('Allgemeine Projektangaben'!C7),\"\",'Allgemeine Projektangaben'!C7)","v":""}]
[null,"Prüfberichts-Nr.:",null,null,null,null,null,null,null,null,null,{"$f":"IF(ISBLANK('Allgemeine Projektangaben'!C31),\"\",'Allgemeine Projektangaben'!C31)","v":""},null,null,null,null,null,null,"Version:",null,null,{"$f":"IF(ISBLANK('Allgemeine Projektangaben'!C32),\"\",'Allgemeine Projektangaben'!C32)","v":""},null,"Prüfberichts-Nr.:",null,null,null,null,null,{"$f":"IF(ISBLANK('Allgemeine Projektangaben'!C18),\"\",'Allgemeine Projektangaben'!C18)","v":""},null,{"$f":"IF(ISBLANK('Allgemeine Projektangaben'!C19),\"\",'Allgemeine Projektangaben'!C19)","v":""},null,null,null,null,null,null,null,"Version:",null,null,{"$f":"IF(ISBLANK('Allgemeine Projektangaben'!C20),\"\",'Allgemeine Projektangaben'!C20)","v":""}]
[null,"Sachnummer:",null,null,null,null,null,null,null,null,null,{"$f":"IF(ISBLANK('Allgemeine Projektangaben'!C38),\"\",'Allgemeine Projektangaben'!C38)","v":""},null,null,null,null,null,null,null,null,null,null,null,"Sachnummer:",null,null,null,null,null,null,null,{"$f":"IF(ISBLANK('Allgemeine Projektangaben'!C21),\"\",'Allgemeine Projektangaben'!C21)","v":""}]
[null,"Zeichnungsnummer:",null,null,null,null,null,null,null,null,null,{"$f":"IF(ISBLANK('Allgemeine Projektangaben'!C39),\"\",'Allgemeine Projektangaben'!C39)","v":""},null,null,null,null,null,null,null,null,null,null,null,"Zeichnungsnummer:",null,null,null,null,null,null,null,{"$f":"IF(ISBLANK('Allgemeine Projektangaben'!C22),\"\",'Allgemeine Projektangaben'!C22)","v":""}]
[null,"Stand / Datum / Q-Stand:",null,null,null,null,null,null,null,null,null,{"$f":"IF(ISBLANK('Allgemeine Projektangaben'!C40),\"\",'Allgemeine Projektangaben'!C40)","v":""},null,null,null,null,null,null,null,null,null,null,null,"Stand / Datum:",null,null,null,null,null,null,null,{"$f":"IF(ISBLANK('Allgemeine Projektangaben'!C23),\"\",'Allgemeine Projektangaben'!C23)","v":""}]
[null,"Änderungsnummer:",null,null,null,null,null,null,null,null,null,{"$f":"IF(ISBLANK('Allgemeine Projektangaben'!C41),\"\",'Allgemeine Projektangaben'!C41)","v":""},null,null,null,null,null,null,null,null,null,null,null,"Änderungsnummer:",null,null,null,null,null,null,null,{"$f":"IF(ISBLANK('Allgemeine Projektangaben'!C24),\"\",'Allgemeine Projektangaben'!C24)","v":""}]
[null,"Benennung:",null,null,null,null,null,null,null,null,null,{"$f":"IF(ISBLANK('Allgemeine Projektangaben'!C42),\"\",'Allgemeine Projektangaben'!C42)","v":""},null,null,null,null,null,null,null,null,null,null,null,"Benennung:",null,null,null,null,null,null,null,{"$f":"IF(ISBLANK('Allgemeine Projektangaben'!C25),\"\",'Allgemeine Projektangaben'!C25)","v":""}]
[null,"Bestellabruf-Nr. / -datum:",null,null,null,null,null,null,null,null,null,{"$f":"IF(ISBLANK('Allgemeine Projektangaben'!C43),\"\",'Allgemeine Projektangaben'!C43)","v":""},null,null,null,null,null,null,null,null,null,null,null,"Bestellabruf-Nr. / -datum:",null,null,null,null,null,null,null,{"$f":"IF(ISBLANK('Allgemeine Projektangaben'!C43),\"\",'Allgemeine Projektangaben'!C43)","v":""}]
[null,"Lieferschein-Nr. /-datum:",null,null,null,null,null,null,null,null,null,{"$f":"IF(ISBLANK('Allgemeine Projektangaben'!C44),\"\",'Allgemeine Projektangaben'!C44)","v":""},null,null,null,null,null,null,null,null,null,null,null,"Wareneingangs-Nr. /-datum:",null,null,null,null,null,null,null,{"$f":"IF(ISBLANK('Allgemeine Projektangaben'!C26),\"\",'Allgemeine Projektangaben'!C26)","v":""}]
[null,"Liefermenge:",null,null,null,null,null,null,null,null,null,{"$f":"IF(ISBLANK('Allgemeine Projektangaben'!C45),\"\",'Allgemeine Projektangaben'!C45)","v":""},null,null,null,null,null,null,null,null,null,null,null,"Abladestelle:",null,null,null,null,{"$f":"IF(ISBLANK('Allgemeine Projektangaben'!C27),\"\",'Allgemeine Projektangaben'!C27)","v":""}]
[null,"Chargen-Nr.:",null,null,null,null,null,null,null,null,null,{"$f":"IF(ISBLANK('Allgemeine Projektangaben'!C46),\"\",'Allgemeine Projektangaben'!C46)","v":""}]
[null,"Mustergewicht [kg]:",null,null,null,null,null,null,null,null,null,{"$f":"IF(ISBLANK('Allgemeine Projektangaben'!C47),\"\",'Allgemeine Projektangaben'!C47)","v":""}]
[]
[null,"Bestätigung Lieferant: "]
[null,"Hiermit wird bestätigt, dass die Bemusterung entsprechend der VDA Schrift 2 Ziffer 4 durchgeführt worden ist"]
[null,"Name:",null,null,null,null,{"$f":"IF(ISBLANK('Allgemeine Projektangaben'!C33),\"\",'Allgemeine Projektangaben'!C33)","v":""},null,null,null,null,null,null,null,null,null,null,null,null,null,null,null,null,"Bemerkung:"]
[null,"Abteilung:",null,null,null,null,{"$f":"IF(ISBLANK('Allgemeine Projektangaben'!C34),\"\",'Allgemeine Projektangaben'!C34)","v":""}]
[null,"Tel /\nE-Mail:",null,null,null,null,{"$f":"IF(ISBLANK('Allgemeine Projektangaben'!C35),\"\",'Allgemeine Projektangaben'!C35)","v":""}]
[]
[]
[null,{"$f":"IF(ISBLANK('Allgemeine Projektangaben'!C3),\"\",'Allgemeine Projektangaben'!C3)","v":""}]
[null,"Datum",null,null,null,null,null,null,null,null,null,null,null,null,null,"Unterschrift"]
[]
[null,"Entscheidung Kunde:",null,null,null,null,null,null,null,null,"gesamt",null,"gemäß Anlagen:"]
[null,null,null,null,null,null,null,null,null,null,null,null,"1.1","1.2","1.3","1.4","1.5","1.6","1.7","1.8","1.9","1.10","2","3","4","5","6","7",8,9,10,11,12,13,14,15,16,17,18,19,20,21,22,23]
[null,"frei"]
[null,"frei mit Auflagen"]
[null,"abgelehnt, Nachbemusterung erforderderlich"]
[]
[null,"Abweich-Genehmigung-Nr.:"]
[null,"bei Rücksendung Lieferschein-Nr.:/-datum:"]
[]
[null,"Name:",null,null,null,null,{"$f":"IF(ISBLANK('Allgemeine Projektangaben'!C11),\"\",'Allgemeine Projektangaben'!C11)","v":""},null,null,null,null,null,null,null,null,null,null,null,null,null,null,null,null,"Bemerkung:"]
[null,"Abteilung:",null,null,null,null,{"$f":"IF(ISBLANK('Allgemeine Projektangaben'!C10),\"\",'Allgemeine Projektangaben'!C10)","v":""}]
[null,"Tel /\nE-Mail:",null,null,null,null,{"$f":"IF(ISBLANK('Allgemeine Projektangaben'!C12),\"\",'Allgemeine Projektangaben'!C12)","v":""}]
[]
[]
[null,{"$f":"IF(ISBLANK('Allgemeine Projektangaben'!C4),\"\",'Allgemeine Projektangaben'!C4)","v":""}]
[null,"Datum",null,null,null,null,null,null,null,null,null,null,null,null,null,"Unterschrift"]
[]
[null,"Verteiler:",null,null,{"$f":"CONCATENATE(\" \",'Allgemeine Projektangaben'!C48,\"  \",'Allgemeine Projektangaben'!C49,\"  \",'Allgemeine Projektangaben'!C50,\"  \",'Allgemeine Projektangaben'!C51,\"  \",'Allgemeine Projektangaben'!C52,\"  \",'Allgemeine Projektangaben'!C53,\"  \",'Allgemeine Projektangaben'!C54,\" \",'Allgemeine Projektangaben'!C55,\" \",'Allgemeine Projektangaben'!C55,\" \",'Allgemeine Projektangaben'!C56,\" \")","v":"                 "}]

{"sheet":"Inhalt des PPF-Berichts","index":3,"n_rows":56,"n_cols":9,"rows_kept":56,"cut":false,"hidden":false,"merged":[[55,7,55,8],[16,1,16,4],[16,8,16,10],[5,1,5,4],[5,5,5,9],[16,6,16,7],[28,8,28,10],[17,8,17,10],[18,8,18,10],[19,8,19,10],[20,8,20,10],[21,8,21,10],[22,8,22,10],[23,8,23,10],[24,8,24,10],[25,8,25,10],[26,8,26,10],[27,8,27,10],[29,8,29,10],[30,8,30,10],[31,8,31,10],[32,8,32,10],[33,8,33,10],[48,8,48,10],[17,6,17,7],[18,6,18,7],[19,6,19,7],[20,6,20,7],[21,6,21,7],[22,6,22,7],[23,6,23,7],[24,6,24,7],[41,8,41,10],[42,8,42,10],[43,8,43,10],[44,8,44,10],[45,8,45,10],[46,8,46,10],[40,8,40,10],[35,6,35,7],[47,8,47,10],[34,8,34,10],[35,8,35,10],[36,8,36,10],[37,8,37,10],[38,8,38,10],[39,8,39,10],[30,6,30,7],[31,6,31,7],[32,6,32,7],[33,6,33,7],[34,6,34,7],[25,6,25,7],[26,6,26,7],[27,6,27,7],[28,6,28,7],[29,6,29,7],[50,1,50,2],[50,3,52,10],[1,4,3,10],[48,6,48,7],[37,6,37,7],[38,6,38,7],[39,6,39,7],[40,6,40,7],[41,6,41,7],[42,6,42,7],[43,6,43,7],[44,6,44,7],[45,6,45,7],[46,6,46,7],[47,6,47,7],[36,6,36,7]]}
[]
[null,null,null,null,"Inhalt des Produktionsprozess- und Produktfreigabe (PPF)"]
[]
[]
[]
[null,"Kundenangaben",null,null,null,"Lieferantenangaben"]
[]
[null,{"$f":"'Allgemeine Projektangaben'!B7&\" \"&'Allgemeine Projektangaben'!C7","v":"Kenn-Nr. Kunde: "},null,null,null,{"$f":"'Allgemeine Projektangaben'!B30&\" \"&'Allgemeine Projektangaben'!C30","v":"Kenn-Nr. Lieferant: "}]
[null,{"$f":"'Allgemeine Projektangaben'!B19&\" \"&'Allgemeine Projektangaben'!C19","v":"Prüfberichts-Nr.: "},null,null,null,{"$f":"'Allgemeine Projektangaben'!B31&\" \"&'Allgemeine Projektangaben'!C31","v":"Prüfberichts-Nr.: "}]
[null,{"$f":"'Allgemeine Projektangaben'!B20&\" \"&'Allgemeine Projektangaben'!C20","v":"Version: "},null,null,null,{"$f":"'Allgemeine Projektangaben'!B32&\" \"&'Allgemeine Projektangaben'!C32","v":"Version: "}]
[null,{"$f":"'Allgemeine Projektangaben'!B21&\" \"&'Allgemeine Projektangaben'!C21","v":"Sach-Nr.: "},null,null,null,{"$f":"'Allgemeine Projektangaben'!B38&\" \"&'Allgemeine Projektangaben'!C38","v":"Sach-Nr.: "}]
[null,{"$f":"'Allgemeine Projektangaben'!B22&\" \"&'Allgemeine Projektangaben'!C22","v":"Zeichnungs-Nr.: "},null,null,null,{"$f":"'Allgemeine Projektangaben'!B39&\" \"&'Allgemeine Projektangaben'!C39","v":"Zeichnungs-Nr.: "}]
[null,{"$f":"'Allgemeine Projektangaben'!B23&\" \"&'Allgemeine Projektangaben'!C23","v":"Stand / Datum: "},null,null,null,{"$f":"'Allgemeine Projektangaben'!B40&\" \"&'Allgemeine Projektangaben'!C40","v":"Stand / Datum / Q-Stand: "}]
[null,{"$f":"'Allgemeine Projektangaben'!B24&\" \"&'Allgemeine Projektangaben'!C24","v":"Änderungs-Nr.: "},null,null,null,{"$f":"'Allgemeine Projektangaben'!B41&\" \"&'Allgemeine Projektangaben'!C41","v":"Änderungs-Nr.: "}]
[null,{"$f":"'Allgemeine Projektangaben'!B25&\" \"&'Allgemeine Projektangaben'!C25","v":"Benennung: "},null,null,null,{"$f":"'Allgemeine Projektangaben'!B42&\" \"&'Allgemeine Projektangaben'!C42","v":"Benennung: "}]
[]
[null,"Anlagen / Einsichtnahme",null,null,null,"Anwendbar","Stand / Datum",null,"Art, Umfang und Kennzeichnung der Anlage"]
[null,"1.1 Geometrie, Maßprüfung"]
[null,"1.2 Funktionsprüfung"]
[null,"1.3 Werkstoffprüfung"]
[null,"1.4 Haptikprüfung"]
[null,"1.5 Akustikprüfung"]
[null,"1.6 Geruchsprüfung"]
[null,"1.7 Aussehensprüfung"]
[null,"1.8 Oberflächenprüfung"]
[null,"1.9 ESD – Prüfung"]
[null,"1.10 Zuverlässigkeitsprüfungen"]
[null,"2 Muster"]
[null,"3 Technische Spezifikationen"]
[null,"4 Produkt-FMEA"]
[null,"5 Konstruktionsfreigabe"]
[null,"6 Einhaltung gesetzlicher Forderungen"]
[null,"7 Materialdatenblatt/IMDS"]
[null,"8 Softwareprüfbericht"]
[null,"9 Prozess-FMEA"]
[null,"10 Prozessablaufdiagramm"]
[null,"11 Produktionslenkungsplan"]
[null,"12 Prozessfähigkeitsnachweis"]
[null,"13 Absicherung besondere Merkmale"]
[null,"14 Prüfmittelliste"]
[null,"15 Prüfmittelfähigkeitsnachweis"]
[null,"16 Werkzeugübersicht"]
[null,"17 Nachweis vereinbarte Kapazität"]
[null,"18 Schriftliche Selbstbewertung"]
[null,"19 Teilelebenslauf"]
[null,"20 Eignungsnachweis Ladungsträger inkl. Lagerung"]
[null,"21 PPF-Status Lieferkette"]
[null,"22 Freigabe von Beschichtungssystemen"]
[null,"23 Sonstiges"]
[]
[null,"Bemerkungen Lieferant:"]
[]
[]
[null,"Name:",{"$f":"IF(ISBLANK('Allgemeine Projektangaben'!C33),\"\",'Allgemeine Projektangaben'!C33)","v":""}]
[null,"Abteilung:",{"$f":"IF(ISBLANK('Allgemeine Projektangaben'!C34),\"\",'Allgemeine Projektangaben'!C34)","v":""}]
[null,"Datum: ",{"$f":"IF(ISBLANK('Allgemeine Projektangaben'!C3),\"\",'Allgemeine Projektangaben'!C3)","v":""},null,null,null,null,"Unterschrift:"]

{"sheet":"Prüfergebnisse Blatt 1","index":4,"n_rows":597,"n_cols":314,"rows_kept":597,"cut":false,"hidden":false,"merged":[[596,310,596,312],[596,313,596,318],[11,14,12,14],[11,15,12,15],[283,30,283,33],[283,34,283,40],[281,30,281,33],[281,34,281,40],[43,1,43,15],[44,1,46,15],[10,5,12,5],[10,3,12,3],[0,5,2,15],[10,2,12,2],[10,1,12,1],[10,6,10,13],[10,14,10,15],[0,1,2,2],[8,8,8,15],[4,1,4,7],[5,1,5,7],[6,1,6,7],[7,1,7,7],[8,1,8,7],[6,8,6,15],[7,8,7,15],[9,1,9,15],[10,4,12,4]]}
[null,null,null,null,null,"Prüfergebnisse"]
[]
[]
[]
[null,{"$f":"'Allgemeine Projektangaben'!B30&\" \"&'Allgemeine Projektangaben'!C30","v":"Kenn-Nr. Lieferant: "},null,null,null,null,null,null,{"$f":"'Allgemeine Projektangaben'!B7&\" \"&'Allgemeine Projektangaben'!C7","v":"Kenn-Nr. Kunde: "}]
[null,{"$f":"'Allgemeine Projektangaben'!B31&\" \"&'Allgemeine Projektangaben'!C31","v":"Prüfberichts-Nr.: "},null,null,null,null,null,null,{"$f":"'Allgemeine Projektangaben'!B19&\" \"&'Allgemeine Projektangaben'!C19","v":"Prüfberichts-Nr.: "}]
[null,"Sach- / Zeichnungs- / Änderungs-Nr. / Stand / Datum / Q- Stand:",null,null,null,null,null,null,"Sach- / Zeichnungs- / Änderungs-Nr. / Stand / Datum:"]
[null,{"$f":"CONCATENATE(\"  \",'Allgemeine Projektangaben'!C38,\" / \",'Allgemeine Projektangaben'!C39,\" / \",'Allgemeine Projektangaben'!C41&\" / \",'Allgemeine Projektangaben'!C40)","v":"   /  /  / "},null,null,null,null,null,null,{"$f":"CONCATENATE(\"  \",'Allgemeine Projektangaben'!C21,\" / \",'Allgemeine Projektangaben'!C22,\" / \",'Allgemeine Projektangaben'!C24,\" / \",'Allgemeine Projektangaben'!C23)","v":"   /  /  / "}]
[null,{"$f":"'Allgemeine Projektangaben'!B42&\" \"&'Allgemeine Projektangaben'!C42","v":"Benennung: "},null,null,null,null,null,null,{"$f":"'Allgemeine Projektangaben'!B25&\" \"&'Allgemeine Projektangaben'!C25","v":"Benennung: "}]
[]
[null,"Ref.-Nr.","Prüf-mittel","Forderungen (mit Zusatzangabe Ø, R, °,etc.)","obere Grenz-wert","untere Grenz-wert","Ist-Werte Lieferant (ohne Zusatzangabe Ø, R, °,etc.)",null,null,null,null,null,null,null,"Bewertung"]
[null,null,null,null,null,null,"Teil 1","Teil 2","Teil 3","Teil 4","Teil 5","Teil 6","Teil 7","Teil 8","Bemerkung","Entscheidung"]
[null,null,null,null,null,null,null,null,null,null,null,null,null,null,null,null,null,null,null,"Anzahl","Mittelwert","Standardabweichung","Min","Max","CpK","Min/Max Abweichung"]
[null,1,null,null,null,null,null,null,null,null,null,null,null,null,null,null,null,null,null,{"$f":"COUNT(G14:N14)","v":0},{"$f":"IFERROR(AVERAGE(G14:N14),\"\")","v":""},{"$f":"IF(COUNT(G14:N14)>1,STDEV(G14:N14),\"\")","v":""},{"$f":"MIN(G14:N14)","v":0},{"$f":"MAX(G14:N14)","v":0},{"$f":"IF(COUNT(G14:N14)>2,MIN((U14-F14)/(3*V14),(E14-U14)/(3*V14)),\"\")","v":""},{"$f":"IF(IF(((W14-E14)*-1)<(X14-F14),X14-F14,(W14-E14)*-1)>0,IF((W14-E14)*-1<(X14-F14),X14-F14,(W14-E14)*-1),\"\")","v":""}]
[null,2,null,null,null,null,null,null,null,null,null,null,null,null,null,null,null,null,null,{"$f":"COUNT(G15:N15)","v":0},{"$f":"IFERROR(AVERAGE(G15:N15),\"\")","v":""},{"$f":"IF(COUNT(G15:N15)>1,STDEV(G15:N15),\"\")","v":""},{"$f":"MIN(G15:N15)","v":0},{"$f":"MAX(G15:N15)","v":0},{"$f":"IF(COUNT(G15:N15)>2,MIN((U15-F15)/(3*V15),(E15-U15)/(3*V15)),\"\")","v":""},{"$f":"IF(IF(((W15-E15)*-1)<(X15-F15),X15-F15,(W15-E15)*-1)>0,IF((W15-E15)*-1<(X15-F15),X15-F15,(W15-E15)*-1),\"\")","v":""}]
[null,3,null,null,null,null,null,null,null,null,null,null,null,null,null,null,null,null,null,0,"","",0,0,"",""]
[null,4,null,null,null,null,null,null,null,null,null,null,null,null,null,null,null,null,null,0,"","",0,0,"",""]
[null,5,null,null,null,null,null,null,null,null,null,null,null,null,null,null,null,null,null,0,"","",0,0,"",""]
[null,6,null,null,null,null,null,null,null,null,null,null,null,null,null,null,null,null,null,0,"","",0,0,"",""]
[null,7,null,null,null,null,null,null,null,null,null,null,null,null,null,null,null,null,null,0,"","",0,0,"",""]
[null,8,null,null,null,null,null,null,null,null,null,null,null,null,null,null,null,null,null,0,"","",0,0,"",""]
[null,9,null,null,null,null,null,null,null,null,null,null,null,null,null,null,null,null,null,0,"","",0,0,"",""]
[null,10,null,null,null,null,null,null,null,null,null,null,null,null,null,null,null,null,null,0,"","",0,0,"",""]
[null,11,null,null,null,null,null,null,null,null,null,null,null,null,null,null,null,null,null,0,"","",0,0,"",""]
[null,12,null,null,null,null,null,null,null,null,null,null,null,null,null,null,null,null,null,0,"","",0,0,"",""]
[null,13,null,null,null,null,null,null,null,null,null,null,null,null,null,null,null,null,null,0,"","",0,0,"",""]
[null,14,null,null,null,null,null,null,null,null,null,null,null,null,null,null,null,null,null,0,"","",0,0,"",""]
[null,15,null,null,null,null,null,null,null,null,null,null,null,null,null,null,null,null,null,0,"","",0,0,"",""]
[null,16,null,null,null,null,null,null,null,null,null,null,null,null,null,null,null,null,null,0,"","",0,0,"",""]
[null,17,null,null,null,null,null,null,null,null,null,null,null,null,null,null,null,null,null,0,"","",0,0,"",""]
[null,18,null,null,null,null,null,null,null,null,null,null,null,null,null,null,null,null,null,0,"","",0,0,""]
[null,19,null,null,null,null,null,null,null,null,null,null,null,null,null,null,null,null,null,0,"","",0,0,""]
[null,20,null,null,null,null,null,null,null,null,null,null,null,null,null,null,null,null,null,0,"","",0,0,"",""]
[null,21,null,null,null,null,null,null,null,null,null,null,null,null,null,null,null,null,null,0,"","",0,0,"",""]
[null,22,null,null,null,null,null,null,null,null,null,null,null,null,null,null,null,null,null,0,"","",0,0,"",""]
[null,23,null,null,null,null,null,null,null,null,null,null,null,null,null,null,null,null,null,0,"","",0,0,"",""]
[null,24,null,null,null,null,null,null,null,null,null,null,null,null,null,null,null,null,null,0,"","",0,0,"",""]
[null,25,null,null,null,null,null,null,null,null,null,null,null,null,null,null,null,null,null,0,"","",0,0,""]
[null,26,null,null,null,null,null,null,null,null,null,null,null,null,null,null,null,null,null,0,"","",0,0,""]
[null,27,null,null,null,null,null,null,null,null,null,null,null,null,null,null,null,null,null,0,"","",0,0,""]
[null,28,null,null,null,null,null,null,null,null,null,null,null,null,null,null,null,null,null,0,"","",0,0,""]
[null,29,null,null,null,null,null,null,null,null,null,null,null,null,null,null,null,null,null,0,"","",0,0,""]
[null,30,null,null,null,null,null,null,null,null,null,null,null,null,null,null,null,null,null,0,"","",0,0,""]
[null,{"$f":"O12&\":\"","v":"Bemerkung:"}]
[]
[]
[]
[]
[]
[]
[]
[]
[]
[]
[]
[]
[]
[]
[]
[]
[]
[]
[]
[]
[]
[]
[]
[]
[]
[]
[]
[]
[]
[]
[]
[]
[]
[]
[]
[]
[]
[]
[]
[]
[]
[]
[]
[]
[]
[]
[]
[]
[]
[]
[]
[]
[]
[]
[]
[]
[]
[]
[]
[]
[]
[]
[]
[]
[]
[]
[]
[]
[]
[]
[]
[]
[]
[]
[]
[]
[]
[]
[]
[]
[]
[]
[]
[]
[]
[]
[]
[]
[]
[]
[]
[]
[]
[]
[]
[]
[]
[]
[]
[]
[]
[]
[]
[]
[]
[]
[]
[]
[]
[]
[]
[]
[]
[]
[]
[]
[]
[]
[]
[]
[]
[]
[]
[]
[]
[]
[]
[]
[]
[]
[]
[]
[]
[]
[]
[]
[]
[]
[]
[]
[]
[]
[]
[]
[]
[]
[]
[]
[]
[]
[]
[]
[]
[]
[]
[]
[]
[]
[]
[]
[]
[]
[]
[]
[]
[]
[]
[]
[]
[]
[]
[]
[]
[]
[]
[]
[]
[]
[]
[]
[]
[]
[]
[]
[]
[]
[]
[]
[]
[]
[]
[]
[]
[]
[]
[]
[]
[]
[]
[]
[]
[]
[]
[]
[]
[]
[]
[]
[]
[]
[]
[]
[]
[]
[]
[]
[]
[]
[]
[]
[]
[]
[]
[]
[]
[]
[]
[]
[]
[]
[]
[]
[]
[]
[]
[]
[]
[]
[]
[]
[]
[]
[]
[]
[]
[]
[]
[]
[]
[]
[]
[]
[]
[]
[]
[]
[]
[]
[]
[]
[]
[]
[]
[]
[]
[]
[]
[]
[]
[]
[]
[]
[]
[]
[]
[]
[]
[]
[]
[]
[]
[]
[]
[]
[]
[]
[]
[]
[]
[]
[]
[]
[]
[]
[]
[]
[]
[]
[]
[]
[]
[]
[]
[]
[]
[]
[]
[]
[]
[]
[]
[]
[]
[]
[]
[]
[]
[]
[]
[]
[]
[]
[]
[]
[]
[]
[]
[]
[]
[]
[]
[]
[]
[]
[]
[]
[]
[]
[]
[]
[]
[]
[]
[]
[]
[]
[]
[]
[]
[]
[]
[]
[]
[]
[]
[]
[]
[]
[]
[]
[]
[]
[]
[]
[]
[]
[]
[]
[]
[]
[]
[]
[]
[]
[]
[]
[]
[]
[]
[]
[]
[]
[]
[]
[]
[]
[]
[]
[]
[]
[]
[]
[]
[]
[]
[]
[]
[]
[]
[]
[]
[]
[]
[]
[]
[]
[]
[]
[]
[]
[]
[]
[]
[]
[]
[]
[]
[]
[]
[]
[]
[]
[]
[]
[]
[]
[]
[]
[]
[]
[]
[]
[]
[]
[]
[]
[]
[]
[]
[]
[]
[]
[]
[]
[]
[]
[]
[]
[]
[]
[]
[]
[]
[]
[]
[]
[]
[]
[]
[]
[]
[]
[]
[]
[]
[]
[]
[]
[]
[]
[]
[]
[]
[]
[]
[]
[]
[]
[]
[]
[]
[]
[]
[]
[]
[]
[]
[]
[]
[]
[]
[]
[]
[]
[]
[]
[]
[]
[]
[]
[]
[]
[]
[]
[]
[]
[]
[]
[]
[]
[]
[]
[]
[]
[]
[]
[]
[]
[]
[]
[]
[]
[]
[]
[]
[]
[]
[]
[]
[]
[]
[]
[]
[]
[]
[]
[]
[]
[]
[]
[]
[]
[]
[]
[]
[]
[]
[]
[]
[]
[]
[]
[null,null,null,null,null,null,null,null,null,null,null,null,null,null,null,null,null,null,null,null,null,null,null,null,null,null,null,null,null,null,null,null,null,null,null,null,null,null,null,null,null,null,null,null,null,null,null,null,null,null,null,null,null,null,null,null,null,null,null,null,null,null,null,null,null,null,null,null,null,null,null,null,null,null,null,null,null,null,null,null,null,null,null,null,null,null,null,null,null,null,null,null,null,null,null,null,null,null,null,null,null,null,null,null,null,null,null,null,null,null,null,null,null,null,null,null,null,null,null,null,null,null,null,null,null,null,null,null,null,null,null,null,null,null,null,null,null,null,null,null,null,null,null,null,null,null,null,null,null,null,null,null,null,null,null,null,null,null,null,null,null,null,null,null,null,null,null,null,null,null,null,null,null,null,null,null,null,null,null,null,null,null,null,null,null,null,null,null,null,null,null,null,null,null,null,null,null,null,null,null,null,null,null,null,null,null,null,null,null,null,null,null,null,null,null,null,null,null,null,null,null,null,null,null,null,null,null,null,null,null,null,null,null,null,null,null,null,null,null,null,null,null,null,null,null,null,null,null,null,null,null,null,null,null,null,null,null,null,null,null,null,null,null,null,null,null,null,null,null,null,null,null,null,null,null,null,null,null,null,null,null,null,null,null,null,null,null,null,null,null,null,null,null,null,null,null,null,null,null,null,null,null,null,null,null,null,null,null,null,null,"Worksheet name:",null,null,{"$f":"MID(CELL(\"filename\",JU316),FIND(\"]\",CELL(\"filename\"))+1,31)","v":"Prüfergebnisse Blatt 1"}]

{"sheet":"Soll-Ist Vergleich","index":5,"n_rows":212,"n_cols":22,"rows_kept":212,"cut":false,"hidden":false,"merged":[[105,0,105,1],[106,0,107,6],[105,7,105,8],[106,7,107,13],[52,0,52,1],[52,14,52,15],[52,21,52,22],[53,0,54,6],[52,7,52,8],[53,7,54,13],[53,14,54,20],[53,21,54,27],[105,14,105,15],[105,21,105,22],[106,14,107,20],[106,21,107,27],[158,21,158,22],[159,14,160,20],[159,21,160,27],[211,0,211,1],[211,7,211,8],[158,0,158,1],[158,7,158,8],[159,0,160,6],[159,7,160,13],[158,14,158,15],[212,0,213,6],[212,7,213,13],[211,14,211,15],[211,21,211,22],[212,14,213,20],[212,21,213,27]]}
[]
[]
[]
[]
[]
[]
[]
[]
[]
[]
[]
[]
[]
[]
[]
[]
[]
[]
[]
[]
[]
[]
[]
[]
[]
[]
[]
[]
[]
[]
[]
[]
[]
[]
[]
[]
[]
[]
[]
[]
[]
[]
[]
[]
[]
[]
[]
[]
[]
[]
[]
[]
["Link zum CT Scan: ",null,null,null,null,null,null,"Link zum CT Scan: ",null,null,null,null,null,null,"Link zum CT Scan: ",null,null,null,null,null,null,"Link zum CT Scan: "]
[]
[]
[]
[]
[]
[]
[]
[]
[]
[]
[]
[]
[]
[]
[]
[]
[]
[]
[]
[]
[]
[]
[]
[]
[]
[]
[]
[]
[]
[]
[]
[]
[]
[]
[]
[]
[]
[]
[]
[]
[]
[]
[]
[]
[]
[]
[]
[]
[]
[]
[]
[]
["Link zum CT Scan: ",null,null,null,null,null,null,"Link zum CT Scan: ",null,null,null,null,null,null,"Link zum CT Scan: ",null,null,null,null,null,null,"Link zum CT Scan: "]
[]
[]
[]
[]
[]
[]
[]
[]
[]
[]
[]
[]
[]
[]
[]
[]
[]
[]
[]
[]
[]
[]
[]
[]
[]
[]
[]
[]
[]
[]
[]
[]
[]
[]
[]
[]
[]
[]
[]
[]
[]
[]
[]
[]
[]
[]
[]
[]
[]
[]
[]
[]
["Link zum CT Scan: ",null,null,null,null,null,null,"Link zum CT Scan: ",null,null,null,null,null,null,"Link zum CT Scan: ",null,null,null,null,null,null,"Link zum CT Scan: "]
[]
[]
[]
[]
[]
[]
[]
[]
[]
[]
[]
[]
[]
[]
[]
[]
[]
[]
[]
[]
[]
[]
[]
[]
[]
[]
[]
[]
[]
[]
[]
[]
[]
[]
[]
[]
[]
[]
[]
[]
[]
[]
[]
[]
[]
[]
[]
[]
[]
[]
[]
[]
["Link zum CT Scan: ",null,null,null,null,null,null,"Link zum CT Scan: ",null,null,null,null,null,null,"Link zum CT Scan: ",null,null,null,null,null,null,"Link zum CT Scan: "]

{"sheet":"Musterauftrag","index":6,"n_rows":0,"n_cols":0,"rows_kept":0,"cut":false,"hidden":true,"merged":[]}

{"sheet":"Zeichnung","index":7,"n_rows":0,"n_cols":0,"rows_kept":0,"cut":false,"hidden":false,"merged":[]}

{"sheet":"Verlinkungen","index":8,"n_rows":2,"n_cols":4,"rows_kept":2,"cut":false,"hidden":true,"merged":[]}
[]
[null,"Materialnummer","Bezeichnung","Link"]

{"sheet":"MFU","index":9,"n_rows":589,"n_cols":314,"rows_kept":589,"cut":false,"hidden":false,"merged":[[588,313,588,318],[20,10,20,12],[13,15,13,18],[25,10,25,12],[26,10,26,12],[27,10,27,12],[16,10,16,12],[16,13,31,18],[588,310,588,312],[17,10,17,12],[13,9,13,10],[13,11,13,12],[13,13,13,14],[18,7,18,9],[10,1,10,4],[7,16,7,18],[5,14,5,18],[5,10,5,13],[29,10,29,12],[25,7,25,9],[9,5,9,9],[9,10,9,11],[23,7,24,9],[26,7,26,9],[27,7,27,9],[16,7,16,9],[11,1,11,18],[13,2,14,2],[13,3,14,3],[13,4,14,4],[13,5,14,5],[13,6,14,6],[13,7,13,8],[30,10,30,12],[276,1,276,2],[31,10,31,12],[28,10,28,12],[20,7,20,9],[22,7,22,9],[22,10,22,12],[21,10,21,11],[21,7,21,8],[17,7,17,9],[23,10,24,12],[277,1,277,2],[278,1,278,2],[280,1,280,2],[28,7,28,9],[29,7,29,9],[30,7,30,9],[31,7,31,9],[8,10,8,12],[8,13,8,15],[18,10,18,12],[19,7,19,9],[19,10,19,12],[9,12,9,14],[14,15,15,18],[14,7,15,8],[14,9,15,10],[14,11,15,12],[14,13,15,14],[5,5,5,8],[6,5,6,8],[9,1,9,4],[0,2,0,15],[1,5,4,12],[5,1,5,4],[6,10,6,13],[6,14,6,18],[6,1,6,4],[1,13,2,18],[7,1,7,4],[7,5,7,9],[7,10,7,12],[7,13,7,15],[8,1,8,4],[8,5,8,9]]}
[]
[null,null,null,null,null,"Fähigkeitsanalyse",null,null,null,null,null,null,null,"Prozessfähigkeit"]
[]
[]
[]
[null,"Material Nr.",null,null,null,"Zeichnungs-Nr.:",null,null,null,"Rev.","Prüfmittel",null,null,null,"Prüfer"]
[]
[null,"Benennung",null,null,null,"Charge Nr.",null,null,null,null,"Abteilung",null,null,"Durchwahl",null,null,"Datum"]
[]
[null,"Graue Felder nicht ausfüllen\n",null,null,null,"Änderungsnr.",null,null,null,null,null,null,"Kavitäten & Kennzeichnung"]
[null,"Bemerkung"]
[]
[]
[null,null,"1-50","51-100","101-150","151-200","201-250","Forderung",null,"Sollmaß",null,"obere Grenzwert",null,"untere Grenzwert",null,"Einheit"]
[]
[null,1]
[null,2,null,null,null,null,null,"Anzahl Daten:",null,null,{"$f":"COUNT(MFU_DATA)","v":0}]
[null,3,null,null,null,null,null,"Mittelwert:",null,null,{"$f":"IFERROR(AVERAGE(MFU_DATA),\"\")","v":""}]
[null,4,null,null,null,null,null,"Standard Abweichung:",null,null,{"$f":"IFERROR(STDEV(MFU_DATA),\"\")","v":""}]
[null,5,null,null,null,null,null,"Größter Wert:",null,null,{"$f":"MAX(MFU_DATA)","v":0}]
[null,6,null,null,null,null,null,"Kleinster Wert:",null,null,{"$f":"MIN(MFU_DATA)","v":0}]
[null,7,null,null,null,null,null,"Wölbung",null,{"$f":"IFERROR(KURT(MFU_DATA),\"\")","v":""},"Schiefe",null,{"$f":"IFERROR(SKEW(MFU_DATA),\"\")","v":""}]
[null,8,null,null,null,null,null,"Cm",null,null,{"$f":"IFERROR((obere_Grenzwert-untere_Grenzwert)/(6*Std_Abweichung),\"\")","v":""}]
[null,9,null,null,null,null,null,"CmK",null,null,{"$f":"IFERROR(MIN((obere_Grenzwert-Mittelwert)/(3*Std_Abweichung),(Mittelwert-untere_Grenzwert)/(3*Std_Abweichung)),\"\")","v":""}]
[null,10]
[null,11,null,null,null,null,null,"obere Grenzwert:",null,null,{"$f":"L15","v":0}]
[null,12,null,null,null,null,null,"untere Grenzwert:",null,null,{"$f":"N15","v":0}]
[null,13,null,null,null,null,null," +3S",null,null,{"$f":"IFERROR(Mittelwert+3*Std_Abweichung,\"\")","v":""}]
[null,14,null,null,null,null,null," -3S",null,null,{"$f":"IFERROR(Mittelwert-3*Std_Abweichung,\"\")","v":""}]
[null,15,null,null,null,null,null,"UG verletzung(ppm):",null,null,{"$f":"IFERROR((1-NORMSDIST((obere_Grenzwert-Mittelwert)/Std_Abweichung))*1000000,\"\")","v":""}]
[null,16,null,null,null,null,null,"UG verletzung(ppm):",null,null,{"$f":"IFERROR((NORMSDIST((untere_Grenzwert-Mittelwert)/Std_Abweichung))*1000000,\"\")","v":""}]
[null,17,null,null,null,null,null,"Gesamt Abweichung:",null,null,{"$f":"SUM(K30:M31)","v":0}]
[null,18]
[null,19]
[null,20]
[null,21]
[null,22]
[null,23]
[null,24]
[null,25]
[null,26]
[null,27]
[null,28]
[null,29]
[null,30]
[null,31]
[null,32]
[null,33]
[null,34]
[null,35]
[null,36]
[null,37]
[null,38]
[null,39]
[null,40]
[null,41]
[null,42]
[null,43]
[null,44]
[null,45]
[null,46]
[null,47]
[null,48]
[null,49]
[null,50]
[]
[]
[]
[]
[]
[]
[]
[]
[]
[]
[]
[]
[]
[]
[]
[]
[]
[]
[]
[]
[]
[]
[]
[]
[]
[]
[]
[]
[]
[]
[]
[]
[]
[]
[]
[]
[]
[]
[]
[]
[]
[]
[]
[]
[]
[]
[]
[]
[]
[]
[]
[]
[]
[]
[]
[]
[]
[]
[]
[]
[]
[]
[]
[]
[]
[]
[]
[]
[]
[]
[]
[]
[]
[]
[]
[]
[]
[]
[]
[]
[]
[]
[]
[]
[]
[]
[]
[]
[]
[]
[]
[]
[]
[]
[]
[]
[]
[]
[]
[]
[]
[]
[]
[]
[]
[]
[]
[]
[]
[]
[]
[]
[]
[]
[]
[]
[]
[]
[]
[]
[]
[]
[]
[]
[]
[]
[]
[]
[]
[]
[]
[]
[]
[]
[]
[]
[]
[]
[]
[]
[]
[]
[]
[]
[]
[]
[]
[]
[]
[]
[]
[]
[]
[]
[]
[]
[]
[]
[]
[]
[]
[]
[]
[]
[]
[]
[]
[]
[]
[]
[]
[]
[]
[]
[]
[]
[]
[]
[]
[]
[]
[]
[]
[]
[]
[]
[]
[]
[]
[]
[]
[]
[]
[]
[]
[]
[]
[]
[]
[]
[]
[]
[]
[]
[]
[]
[]
[]
[]
[]
[null,null,null,null,null,"LSL"]
[null,"Valeur X",null,{"$f":"untere_Grenzwert-2*D281","v":0},{"$f":"untere_Grenzwert-D281","v":0},{"$f":"E277+$D$281","v":0},0,0,0,0,0,0,0,0,0,0,0,0,0,0,0,0,0,0,0,0,0,0,0,0]
[null,"Courbe de gauss",null,{"$f":"NORMDIST(D277,Mittelwert,Std_Abweichung,FALSE)","v":{"$error":"#VALUE!"}},{"$error":"#VALUE!"},{"$error":"#VALUE!"},{"$error":"#VALUE!"},{"$error":"#VALUE!"},{"$error":"#VALUE!"},{"$error":"#VALUE!"},{"$error":"#VALUE!"},{"$error":"#VALUE!"},{"$error":"#VALUE!"},{"$error":"#VALUE!"},{"$error":"#VALUE!"},{"$error":"#VALUE!"},{"$error":"#VALUE!"},{"$error":"#VALUE!"},{"$error":"#VALUE!"},{"$error":"#VALUE!"},{"$error":"#VALUE!"},{"$error":"#VALUE!"},{"$error":"#VALUE!"},{"$error":"#VALUE!"},{"$error":"#VALUE!"},{"$error":"#VALUE!"},{"$error":"#VALUE!"},{"$error":"#VALUE!"},{"$error":"#VALUE!"},{"$error":"#VALUE!"}]
[null,"Fréquence",null,{"$f":"FREQUENCY(_DATA,D277)","v":0},{"$f":"FREQUENCY(_DATA,E277)-FREQUENCY(_DATA,D277)","v":0},0,0,0,0,0,0,0,0,0,0,0,0,0,0,0,0,0,0,0,0,0,0,0,0,0]
[]
[null,"Intervalle",null,{"$f":"(obere_Grenzwert-untere_Grenzwert)/22","v":0}]
[]
[]
[]
[]
[]
[]
[]
[]
[]
[]
[null,"Normalverteilung"]
[]
[]
[]
[]
[]
[]
[]
[]
[]
[]
[]
[]
[]
[]
[]
[]
[]
[]
[]
[]
[]
[]
[]
[]
[]
[]
[]
[]
[]
[]
[]
[]
[]
[]
[]
[]
[]
[]
[]
[]
[]
[]
[]
[]
[]
[]
[]
[]
[]
[]
[]
[]
[]
[]
[]
[]
[]
[]
[]
[]
[]
[]
[]
[]
[]
[]
[]
[]
[]
[]
[]
[]
[]
[]
[]
[]
[]
[]
[]
[]
[]
[]
[]
[]
[]
[]
[]
[]
[]
[]
[]
[]
[]
[]
[]
[]
[]
[]
[]
[]
[]
[]
[]
[]
[]
[]
[]
[]
[]
[]
[]
[]
[]
[]
[]
[]
[]
[]
[]
[]
[]
[]
[]
[]
[]
[]
[]
[]
[]
[]
[]
[]
[]
[]
[]
[]
[]
[]
[]
[]
[]
[]
[]
[]
[]
[]
[]
[]
[]
[]
[]
[]
[]
[]
[]
[]
[]
[]
[]
[]
[]
[]
[]
[]
[]
[]
[]
[]
[]
[]
[]
[]
[]
[]
[]
[]
[]
[]
[]
[]
[]
[]
[]
[]
[]
[]
[]
[]
[]
[]
[]
[]
[]
[]
[]
[]
[]
[]
[]
[]
[]
[]
[]
[]
[]
[]
[]
[]
[]
[]
[]
[]
[]
[]
[]
[]
[]
[]
[]
[]
[]
[]
[]
[]
[]
[]
[]
[]
[]
[]
[]
[]
[]
[]
[]
[]
[]
[]
[]
[]
[]
[]
[]
[]
[]
[]
[]
[]
[]
[]
[]
[]
[]
[]
[]
[]
[]
[]
[]
[]
[]
[]
[]
[]
[]
[]
[]
[]
[]
[]
[]
[]
[]
[]
[]
[]
[]
[]
[]
[]
[]
[]
[]
[]
[]
[]
[]
[]
[]
[]
[]
[]
[]
[]
[]
[]
[null,null,null,null,null,null,null,null,null,null,null,null,null,null,null,null,null,null,null,null,null,null,null,null,null,null,null,null,null,null,null,null,null,null,null,null,null,null,null,null,null,null,null,null,null,null,null,null,null,null,null,null,null,null,null,null,null,null,null,null,null,null,null,null,null,null,null,null,null,null,null,null,null,null,null,null,null,null,null,null,null,null,null,null,null,null,null,null,null,null,null,null,null,null,null,null,null,null,null,null,null,null,null,null,null,null,null,null,null,null,null,null,null,null,null,null,null,null,null,null,null,null,null,null,null,null,null,null,null,null,null,null,null,null,null,null,null,null,null,null,null,null,null,null,null,null,null,null,null,null,null,null,null,null,null,null,null,null,null,null,null,null,null,null,null,null,null,null,null,null,null,null,null,null,null,null,null,null,null,null,null,null,null,null,null,null,null,null,null,null,null,null,null,null,null,null,null,null,null,null,null,null,null,null,null,null,null,null,null,null,null,null,null,null,null,null,null,null,null,null,null,null,null,null,null,null,null,null,null,null,null,null,null,null,null,null,null,null,null,null,null,null,null,null,null,null,null,null,null,null,null,null,null,null,null,null,null,null,null,null,null,null,null,null,null,null,null,null,null,null,null,null,null,null,null,null,null,null,null,null,null,null,null,null,null,null,null,null,null,null,null,null,null,null,null,null,null,null,null,null,null,null,null,null,null,null,null,null,null,null,"Worksheet name:",null,null,{"$f":"MID(CELL(\"filename\",JU307),FIND(\"]\",CELL(\"filename\"))+1,31)","v":"MFU"}]

{"sheet":"Lng","index":10,"n_rows":613,"n_cols":20,"rows_kept":613,"cut":false,"hidden":true,"merged":[[283,6,315,6],[316,6,348,6],[349,6,381,6],[382,6,414,6],[415,6,447,6],[448,6,480,6],[481,6,513,6],[514,6,546,6],[547,6,579,6],[580,6,612,6],[183,6,202,6],[203,6,222,6],[223,6,242,6],[243,6,262,6],[263,6,282,6]]}
["Sheet","multipage","Column","Row","DE","EN","Nr.","Tabellenblattnamen",null,null,"Prüfergebnisse",null,"MFU"]
["Allgemeine Projektangaben",0,"B",1,"Allgemeine Projektangaben  EMPB","General project information ISIR",{"$f":"IF(H2=\"\",\"\",ROW()-1)","v":""},{"$f":"IFERROR(MID(INDEX(Listsheets,ROW(A1)),FIND(\"]\",INDEX(Listsheets,ROW(A1)))+1,31),\"\")","v":""},null,{"$f":"IF(H2=\"\",\"\",\"2\")","v":""},{"$f":"IF(H2=\"\",\"\",IFERROR(SMALL(IF(IFERROR(SEARCH($K$1,$H$1:$H$232)>0,FALSE),ROW($H$1:$H$232)),ROW()-1),\"\"))","v":""},{"$f":"IF(H2=\"\",\"\",IFERROR(INDEX($G$1:$L$39,K2,J2),\"\"))","v":""},{"$f":"IF(H2=\"\",\"\",IFERROR(SMALL(IF(IFERROR(SEARCH($M$1,$H$1:$H$232)>0,FALSE),ROW($H$1:$H$232)),ROW()-1),\"\"))","v":""},{"$f":"IF(H2=\"\",\"\",IFERROR(INDEX($G$1:$L$39,M2,J2),\"\"))","v":""},null,null,{"$f":"IF(INDIRECT(\"'\"&H2&\"'!LB597\")=0,\"\",INDIRECT(\"'\"&H2&\"'!LB597\"))","v":{"$error":"#REF!"}},{"$f":"IF(INDIRECT(\"'\"&H2&\"'!LB589\")=0,\"\",INDIRECT(\"'\"&H2&\"'!LB589\"))","v":{"$error":"#REF!"}},{"$f":"IFERROR(IF(ROWS(S$2:S2)>COUNTA($Q$2:$Q$20),\"\",INDEX($Q$2:$Q$20,_xlfn.AGGREGATE(15,6,(ROW($Q$2:$Q$20)-ROW($Q$2)+1)/($Q$2:$Q$20<>\"\"),ROWS(S$2:S2)))),\"\")","v":""},{"$f":"IFERROR(IF(ROWS(T$2:T2)>COUNTA($R$2:$R$20),\"\",INDEX($R$2:$R$20,_xlfn.AGGREGATE(15,6,(ROW($R$2:$R$20)-ROW($R$2)+1)/($R$2:$R$20<>\"\"),ROWS(T$2:T2)))),\"\")","v":""}]
["Allgemeine Projektangaben",0,"B",3,"Datum, Name (Lieferant)","Date, Name (supplier)","",{"$f":"IFERROR(MID(INDEX(Listsheets,ROW(A2)),FIND(\"]\",INDEX(Listsheets,ROW(A2)))+1,31),\"\")","v":""},null,"",{"$f":"IF(H3=\"\",\"\",IFERROR(SMALL(IF(IFERROR(SEARCH($K$1,$H$1:$H$232)>0,FALSE),ROW($H$1:$H$232)),ROW()-1),\"\"))","v":""},"",{"$f":"IF(H3=\"\",\"\",IFERROR(SMALL(IF(IFERROR(SEARCH($M$1,$H$1:$H$232)>0,FALSE),ROW($H$1:$H$232)),ROW()-1),\"\"))","v":""},{"$f":"IF(H3=\"\",\"\",IFERROR(INDEX($G$1:$L$39,M3,J3),\"\"))","v":""},null,null,{"$f":"IF(INDIRECT(\"'\"&H3&\"'!LB597\")=0,\"\",INDIRECT(\"'\"&H3&\"'!LB597\"))","v":{"$error":"#REF!"}},{"$f":"IF(INDIRECT(\"'\"&H3&\"'!LB589\")=0,\"\",INDIRECT(\"'\"&H3&\"'!LB589\"))","v":{"$error":"#REF!"}},{"$f":"IFERROR(IF(ROWS(S$2:S3)>COUNTA($Q$2:$Q$20),\"\",INDEX($Q$2:$Q$20,_xlfn.AGGREGATE(15,6,(ROW($Q$2:$Q$20)-ROW($Q$2)+1)/($Q$2:$Q$20<>\"\"),ROWS(S$2:S3)))),\"\")","v":""},{"$f":"IFERROR(IF(ROWS(T$2:T3)>COUNTA($R$2:$R$20),\"\",INDEX($R$2:$R$20,_xlfn.AGGREGATE(15,6,(ROW($R$2:$R$20)-ROW($R$2)+1)/($R$2:$R$20<>\"\"),ROWS(T$2:T3)))),\"\")","v":""}]
["Allgemeine Projektangaben",0,"B",4,"Datum der Freigabe (Kunde)","Release date (customer)","",{"$f":"IFERROR(MID(INDEX(Listsheets,ROW(A3)),FIND(\"]\",INDEX(Listsheets,ROW(A3)))+1,31),\"\")","v":""},null,"",{"$f":"IF(H4=\"\",\"\",IFERROR(SMALL(IF(IFERROR(SEARCH($K$1,$H$1:$H$232)>0,FALSE),ROW($H$1:$H$232)),ROW()-1),\"\"))","v":""},"",{"$f":"IF(H4=\"\",\"\",IFERROR(SMALL(IF(IFERROR(SEARCH($M$1,$H$1:$H$232)>0,FALSE),ROW($H$1:$H$232)),ROW()-1),\"\"))","v":""},"",null,null,{"$f":"IF(INDIRECT(\"'\"&H4&\"'!LB597\")=0,\"\",INDIRECT(\"'\"&H4&\"'!LB597\"))","v":{"$error":"#REF!"}},{"$f":"IF(INDIRECT(\"'\"&H4&\"'!LB589\")=0,\"\",INDIRECT(\"'\"&H4&\"'!LB589\"))","v":{"$error":"#REF!"}},{"$f":"IFERROR(IF(ROWS(S$2:S4)>COUNTA($Q$2:$Q$20),\"\",INDEX($Q$2:$Q$20,_xlfn.AGGREGATE(15,6,(ROW($Q$2:$Q$20)-ROW($Q$2)+1)/($Q$2:$Q$20<>\"\"),ROWS(S$2:S4)))),\"\")","v":""},{"$f":"IFERROR(IF(ROWS(T$2:T4)>COUNTA($R$2:$R$20),\"\",INDEX($R$2:$R$20,_xlfn.AGGREGATE(15,6,(ROW($R$2:$R$20)-ROW($R$2)+1)/($R$2:$R$20<>\"\"),ROWS(T$2:T4)))),\"\")","v":""}]
["Allgemeine Projektangaben",0,"B",6,"Kundenangaben (allgemein)","Customer information (general)","",{"$f":"IFERROR(MID(INDEX(Listsheets,ROW(A4)),FIND(\"]\",INDEX(Listsheets,ROW(A4)))+1,31),\"\")","v":""},null,"",{"$f":"IF(H5=\"\",\"\",IFERROR(SMALL(IF(IFERROR(SEARCH($K$1,$H$1:$H$232)>0,FALSE),ROW($H$1:$H$232)),ROW()-1),\"\"))","v":""},"",{"$f":"IF(H5=\"\",\"\",IFERROR(SMALL(IF(IFERROR(SEARCH($M$1,$H$1:$H$232)>0,FALSE),ROW($H$1:$H$232)),ROW()-1),\"\"))","v":""},"",null,null,{"$f":"IF(INDIRECT(\"'\"&H5&\"'!LB597\")=0,\"\",INDIRECT(\"'\"&H5&\"'!LB597\"))","v":{"$error":"#REF!"}},{"$f":"IF(INDIRECT(\"'\"&H5&\"'!LB589\")=0,\"\",INDIRECT(\"'\"&H5&\"'!LB589\"))","v":{"$error":"#REF!"}},{"$f":"IFERROR(IF(ROWS(S$2:S5)>COUNTA($Q$2:$Q$20),\"\",INDEX($Q$2:$Q$20,_xlfn.AGGREGATE(15,6,(ROW($Q$2:$Q$20)-ROW($Q$2)+1)/($Q$2:$Q$20<>\"\"),ROWS(S$2:S5)))),\"\")","v":""},{"$f":"IFERROR(IF(ROWS(T$2:T5)>COUNTA($R$2:$R$20),\"\",INDEX($R$2:$R$20,_xlfn.AGGREGATE(15,6,(ROW($R$2:$R$20)-ROW($R$2)+1)/($R$2:$R$20<>\"\"),ROWS(T$2:T5)))),\"\")","v":""}]
["Allgemeine Projektangaben",0,"B",7,"Kenn-Nr. Kunde:","Customer identification no.:","",{"$f":"IFERROR(MID(INDEX(Listsheets,ROW(A5)),FIND(\"]\",INDEX(Listsheets,ROW(A5)))+1,31),\"\")","v":""},null,"",{"$f":"IF(H6=\"\",\"\",IFERROR(SMALL(IF(IFERROR(SEARCH($K$1,$H$1:$H$232)>0,FALSE),ROW($H$1:$H$232)),ROW()-1),\"\"))","v":""},"",{"$f":"IF(H6=\"\",\"\",IFERROR(SMALL(IF(IFERROR(SEARCH($M$1,$H$1:$H$232)>0,FALSE),ROW($H$1:$H$232)),ROW()-1),\"\"))","v":""},"",null,null,{"$f":"IF(INDIRECT(\"'\"&H6&\"'!LB597\")=0,\"\",INDIRECT(\"'\"&H6&\"'!LB597\"))","v":{"$error":"#REF!"}},{"$f":"IF(INDIRECT(\"'\"&H6&\"'!LB589\")=0,\"\",INDIRECT(\"'\"&H6&\"'!LB589\"))","v":{"$error":"#REF!"}},{"$f":"IFERROR(IF(ROWS(S$2:S6)>COUNTA($Q$2:$Q$20),\"\",INDEX($Q$2:$Q$20,_xlfn.AGGREGATE(15,6,(ROW($Q$2:$Q$20)-ROW($Q$2)+1)/($Q$2:$Q$20<>\"\"),ROWS(S$2:S6)))),\"\")","v":""},{"$f":"IFERROR(IF(ROWS(T$2:T6)>COUNTA($R$2:$R$20),\"\",INDEX($R$2:$R$20,_xlfn.AGGREGATE(15,6,(ROW($R$2:$R$20)-ROW($R$2)+1)/($R$2:$R$20<>\"\"),ROWS(T$2:T6)))),\"\")","v":""}]
["Allgemeine Projektangaben",0,"B",8,"Firma (Kurzbezeichnung):","Company (short name):","",{"$f":"IFERROR(MID(INDEX(Listsheets,ROW(A6)),FIND(\"]\",INDEX(Listsheets,ROW(A6)))+1,31),\"\")","v":""},null,"",{"$f":"IF(H7=\"\",\"\",IFERROR(SMALL(IF(IFERROR(SEARCH($K$1,$H$1:$H$232)>0,FALSE),ROW($H$1:$H$232)),ROW()-1),\"\"))","v":""},"",{"$f":"IF(H7=\"\",\"\",IFERROR(SMALL(IF(IFERROR(SEARCH($M$1,$H$1:$H$232)>0,FALSE),ROW($H$1:$H$232)),ROW()-1),\"\"))","v":""},"",null,null,{"$f":"IF(INDIRECT(\"'\"&H7&\"'!LB597\")=0,\"\",INDIRECT(\"'\"&H7&\"'!LB597\"))","v":{"$error":"#REF!"}},{"$f":"IF(INDIRECT(\"'\"&H7&\"'!LB589\")=0,\"\",INDIRECT(\"'\"&H7&\"'!LB589\"))","v":{"$error":"#REF!"}},{"$f":"IFERROR(IF(ROWS(S$2:S7)>COUNTA($Q$2:$Q$20),\"\",INDEX($Q$2:$Q$20,_xlfn.AGGREGATE(15,6,(ROW($Q$2:$Q$20)-ROW($Q$2)+1)/($Q$2:$Q$20<>\"\"),ROWS(S$2:S7)))),\"\")","v":""},{"$f":"IFERROR(IF(ROWS(T$2:T7)>COUNTA($R$2:$R$20),\"\",INDEX($R$2:$R$20,_xlfn.AGGREGATE(15,6,(ROW($R$2:$R$20)-ROW($R$2)+1)/($R$2:$R$20<>\"\"),ROWS(T$2:T7)))),\"\")","v":""}]
["Allgemeine Projektangaben",0,"B",9,"Firma:","Company:","",{"$f":"IFERROR(MID(INDEX(Listsheets,ROW(A7)),FIND(\"]\",INDEX(Listsheets,ROW(A7)))+1,31),\"\")","v":""},null,"",{"$f":"IF(H8=\"\",\"\",IFERROR(SMALL(IF(IFERROR(SEARCH($K$1,$H$1:$H$232)>0,FALSE),ROW($H$1:$H$232)),ROW()-1),\"\"))","v":""},"",{"$f":"IF(H8=\"\",\"\",IFERROR(SMALL(IF(IFERROR(SEARCH($M$1,$H$1:$H$232)>0,FALSE),ROW($H$1:$H$232)),ROW()-1),\"\"))","v":""},"",null,null,{"$f":"IF(INDIRECT(\"'\"&H8&\"'!LB597\")=0,\"\",INDIRECT(\"'\"&H8&\"'!LB597\"))","v":{"$error":"#REF!"}},{"$f":"IF(INDIRECT(\"'\"&H8&\"'!LB589\")=0,\"\",INDIRECT(\"'\"&H8&\"'!LB589\"))","v":{"$error":"#REF!"}},{"$f":"IFERROR(IF(ROWS(S$2:S8)>COUNTA($Q$2:$Q$20),\"\",INDEX($Q$2:$Q$20,_xlfn.AGGREGATE(15,6,(ROW($Q$2:$Q$20)-ROW($Q$2)+1)/($Q$2:$Q$20<>\"\"),ROWS(S$2:S8)))),\"\")","v":""},{"$f":"IFERROR(IF(ROWS(T$2:T8)>COUNTA($R$2:$R$20),\"\",INDEX($R$2:$R$20,_xlfn.AGGREGATE(15,6,(ROW($R$2:$R$20)-ROW($R$2)+1)/($R$2:$R$20<>\"\"),ROWS(T$2:T8)))),\"\")","v":""}]
["Allgemeine Projektangaben",0,"B",10,"Abteilung:","Department:","",{"$f":"IFERROR(MID(INDEX(Listsheets,ROW(A8)),FIND(\"]\",INDEX(Listsheets,ROW(A8)))+1,31),\"\")","v":""},null,"",{"$f":"IF(H9=\"\",\"\",IFERROR(SMALL(IF(IFERROR(SEARCH($K$1,$H$1:$H$232)>0,FALSE),ROW($H$1:$H$232)),ROW()-1),\"\"))","v":""},"",{"$f":"IF(H9=\"\",\"\",IFERROR(SMALL(IF(IFERROR(SEARCH($M$1,$H$1:$H$232)>0,FALSE),ROW($H$1:$H$232)),ROW()-1),\"\"))","v":""},"",null,null,{"$f":"IF(INDIRECT(\"'\"&H9&\"'!LB597\")=0,\"\",INDIRECT(\"'\"&H9&\"'!LB597\"))","v":{"$error":"#REF!"}},{"$f":"IF(INDIRECT(\"'\"&H9&\"'!LB589\")=0,\"\",INDIRECT(\"'\"&H9&\"'!LB589\"))","v":{"$error":"#REF!"}},{"$f":"IFERROR(IF(ROWS(S$2:S9)>COUNTA($Q$2:$Q$20),\"\",INDEX($Q$2:$Q$20,_xlfn.AGGREGATE(15,6,(ROW($Q$2:$Q$20)-ROW($Q$2)+1)/($Q$2:$Q$20<>\"\"),ROWS(S$2:S9)))),\"\")","v":""},{"$f":"IFERROR(IF(ROWS(T$2:T9)>COUNTA($R$2:$R$20),\"\",INDEX($R$2:$R$20,_xlfn.AGGREGATE(15,6,(ROW($R$2:$R$20)-ROW($R$2)+1)/($R$2:$R$20<>\"\"),ROWS(T$2:T9)))),\"\")","v":""}]
["Allgemeine Projektangaben",0,"B",11,"Name:","Name:","",{"$f":"IFERROR(MID(INDEX(Listsheets,ROW(A9)),FIND(\"]\",INDEX(Listsheets,ROW(A9)))+1,31),\"\")","v":""},null,"",{"$f":"IF(H10=\"\",\"\",IFERROR(SMALL(IF(IFERROR(SEARCH($K$1,$H$1:$H$232)>0,FALSE),ROW($H$1:$H$232)),ROW()-1),\"\"))","v":""},"",{"$f":"IF(H10=\"\",\"\",IFERROR(SMALL(IF(IFERROR(SEARCH($M$1,$H$1:$H$232)>0,FALSE),ROW($H$1:$H$232)),ROW()-1),\"\"))","v":""},"",null,null,{"$f":"IF(INDIRECT(\"'\"&H10&\"'!LB597\")=0,\"\",INDIRECT(\"'\"&H10&\"'!LB597\"))","v":{"$error":"#REF!"}},{"$f":"IF(INDIRECT(\"'\"&H10&\"'!LB589\")=0,\"\",INDIRECT(\"'\"&H10&\"'!LB589\"))","v":{"$error":"#REF!"}},{"$f":"IFERROR(IF(ROWS(S$2:S10)>COUNTA($Q$2:$Q$20),\"\",INDEX($Q$2:$Q$20,_xlfn.AGGREGATE(15,6,(ROW($Q$2:$Q$20)-ROW($Q$2)+1)/($Q$2:$Q$20<>\"\"),ROWS(S$2:S10)))),\"\")","v":""},{"$f":"IFERROR(IF(ROWS(T$2:T10)>COUNTA($R$2:$R$20),\"\",INDEX($R$2:$R$20,_xlfn.AGGREGATE(15,6,(ROW($R$2:$R$20)-ROW($R$2)+1)/($R$2:$R$20<>\"\"),ROWS(T$2:T10)))),\"\")","v":""}]
["Allgemeine Projektangaben",0,"B",12,"Tel / E-Mail:","Phone / E-Mail:","",{"$f":"IFERROR(MID(INDEX(Listsheets,ROW(A10)),FIND(\"]\",INDEX(Listsheets,ROW(A10)))+1,31),\"\")","v":""},null,"",{"$f":"IF(H11=\"\",\"\",IFERROR(SMALL(IF(IFERROR(SEARCH($K$1,$H$1:$H$232)>0,FALSE),ROW($H$1:$H$232)),ROW()-1),\"\"))","v":""},"",{"$f":"IF(H11=\"\",\"\",IFERROR(SMALL(IF(IFERROR(SEARCH($M$1,$H$1:$H$232)>0,FALSE),ROW($H$1:$H$232)),ROW()-1),\"\"))","v":""},"",null,null,{"$f":"IF(INDIRECT(\"'\"&H11&\"'!LB597\")=0,\"\",INDIRECT(\"'\"&H11&\"'!LB597\"))","v":{"$error":"#REF!"}},{"$f":"IF(INDIRECT(\"'\"&H11&\"'!LB589\")=0,\"\",INDIRECT(\"'\"&H11&\"'!LB589\"))","v":{"$error":"#REF!"}},{"$f":"IFERROR(IF(ROWS(S$2:S11)>COUNTA($Q$2:$Q$20),\"\",INDEX($Q$2:$Q$20,_xlfn.AGGREGATE(15,6,(ROW($Q$2:$Q$20)-ROW($Q$2)+1)/($Q$2:$Q$20<>\"\"),ROWS(S$2:S11)))),\"\")","v":""},{"$f":"IFERROR(IF(ROWS(T$2:T11)>COUNTA($R$2:$R$20),\"\",INDEX($R$2:$R$20,_xlfn.AGGREGATE(15,6,(ROW($R$2:$R$20)-ROW($R$2)+1)/($R$2:$R$20<>\"\"),ROWS(T$2:T11)))),\"\")","v":""}]
["Allgemeine Projektangaben",0,"B",13,"Straße / Postfach:","Street / PO Box:","",{"$f":"IFERROR(MID(INDEX(Listsheets,ROW(A11)),FIND(\"]\",INDEX(Listsheets,ROW(A11)))+1,31),\"\")","v":""},null,"",{"$f":"IF(H12=\"\",\"\",IFERROR(SMALL(IF(IFERROR(SEARCH($K$1,$H$1:$H$232)>0,FALSE),ROW($H$1:$H$232)),ROW()-1),\"\"))","v":""},"",{"$f":"IF(H12=\"\",\"\",IFERROR(SMALL(IF(IFERROR(SEARCH($M$1,$H$1:$H$232)>0,FALSE),ROW($H$1:$H$232)),ROW()-1),\"\"))","v":""},"",null,null,{"$f":"IF(INDIRECT(\"'\"&H12&\"'!LB597\")=0,\"\",INDIRECT(\"'\"&H12&\"'!LB597\"))","v":{"$error":"#REF!"}},{"$f":"IF(INDIRECT(\"'\"&H12&\"'!LB589\")=0,\"\",INDIRECT(\"'\"&H12&\"'!LB589\"))","v":{"$error":"#REF!"}},{"$f":"IFERROR(IF(ROWS(S$2:S12)>COUNTA($Q$2:$Q$20),\"\",INDEX($Q$2:$Q$20,_xlfn.AGGREGATE(15,6,(ROW($Q$2:$Q$20)-ROW($Q$2)+1)/($Q$2:$Q$20<>\"\"),ROWS(S$2:S12)))),\"\")","v":""},{"$f":"IFERROR(IF(ROWS(T$2:T12)>COUNTA($R$2:$R$20),\"\",INDEX($R$2:$R$20,_xlfn.AGGREGATE(15,6,(ROW($R$2:$R$20)-ROW($R$2)+1)/($R$2:$R$20<>\"\"),ROWS(T$2:T12)))),\"\")","v":""}]
["Allgemeine Projektangaben",0,"B",14,"PLZ / Ort:","Postcode / Town:","",{"$f":"IFERROR(MID(INDEX(Listsheets,ROW(A12)),FIND(\"]\",INDEX(Listsheets,ROW(A12)))+1,31),\"\")","v":""},null,"",{"$f":"IF(H13=\"\",\"\",IFERROR(SMALL(IF(IFERROR(SEARCH($K$1,$H$1:$H$232)>0,FALSE),ROW($H$1:$H$232)),ROW()-1),\"\"))","v":""},"",{"$f":"IF(H13=\"\",\"\",IFERROR(SMALL(IF(IFERROR(SEARCH($M$1,$H$1:$H$232)>0,FALSE),ROW($H$1:$H$232)),ROW()-1),\"\"))","v":""},"",null,null,{"$f":"IF(INDIRECT(\"'\"&H13&\"'!LB597\")=0,\"\",INDIRECT(\"'\"&H13&\"'!LB597\"))","v":{"$error":"#REF!"}},{"$f":"IF(INDIRECT(\"'\"&H13&\"'!LB589\")=0,\"\",INDIRECT(\"'\"&H13&\"'!LB589\"))","v":{"$error":"#REF!"}},{"$f":"IFERROR(IF(ROWS(S$2:S13)>COUNTA($Q$2:$Q$20),\"\",INDEX($Q$2:$Q$20,_xlfn.AGGREGATE(15,6,(ROW($Q$2:$Q$20)-ROW($Q$2)+1)/($Q$2:$Q$20<>\"\"),ROWS(S$2:S13)))),\"\")","v":""},{"$f":"IFERROR(IF(ROWS(T$2:T13)>COUNTA($R$2:$R$20),\"\",INDEX($R$2:$R$20,_xlfn.AGGREGATE(15,6,(ROW($R$2:$R$20)-ROW($R$2)+1)/($R$2:$R$20<>\"\"),ROWS(T$2:T13)))),\"\")","v":""}]
["Allgemeine Projektangaben",0,"B",15,"Land:","Country:","",{"$f":"IFERROR(MID(INDEX(Listsheets,ROW(A13)),FIND(\"]\",INDEX(Listsheets,ROW(A13)))+1,31),\"\")","v":""},null,"",{"$f":"IF(H14=\"\",\"\",IFERROR(SMALL(IF(IFERROR(SEARCH($K$1,$H$1:$H$232)>0,FALSE),ROW($H$1:$H$232)),ROW()-1),\"\"))","v":""},"",{"$f":"IF(H14=\"\",\"\",IFERROR(SMALL(IF(IFERROR(SEARCH($M$1,$H$1:$H$232)>0,FALSE),ROW($H$1:$H$232)),ROW()-1),\"\"))","v":""},"",null,null,{"$f":"IF(INDIRECT(\"'\"&H14&\"'!LB597\")=0,\"\",INDIRECT(\"'\"&H14&\"'!LB597\"))","v":{"$error":"#REF!"}},{"$f":"IF(INDIRECT(\"'\"&H14&\"'!LB589\")=0,\"\",INDIRECT(\"'\"&H14&\"'!LB589\"))","v":{"$error":"#REF!"}},{"$f":"IFERROR(IF(ROWS(S$2:S14)>COUNTA($Q$2:$Q$20),\"\",INDEX($Q$2:$Q$20,_xlfn.AGGREGATE(15,6,(ROW($Q$2:$Q$20)-ROW($Q$2)+1)/($Q$2:$Q$20<>\"\"),ROWS(S$2:S14)))),\"\")","v":""},{"$f":"IFERROR(IF(ROWS(T$2:T14)>COUNTA($R$2:$R$20),\"\",INDEX($R$2:$R$20,_xlfn.AGGREGATE(15,6,(ROW($R$2:$R$20)-ROW($R$2)+1)/($R$2:$R$20<>\"\"),ROWS(T$2:T14)))),\"\")","v":""}]
["Allgemeine Projektangaben",0,"B",16,"Sachbearbeiter:","Reviser:","",{"$f":"IFERROR(MID(INDEX(Listsheets,ROW(A14)),FIND(\"]\",INDEX(Listsheets,ROW(A14)))+1,31),\"\")","v":""},null,"",{"$f":"IF(H15=\"\",\"\",IFERROR(SMALL(IF(IFERROR(SEARCH($K$1,$H$1:$H$232)>0,FALSE),ROW($H$1:$H$232)),ROW()-1),\"\"))","v":""},"",{"$f":"IF(H15=\"\",\"\",IFERROR(SMALL(IF(IFERROR(SEARCH($M$1,$H$1:$H$232)>0,FALSE),ROW($H$1:$H$232)),ROW()-1),\"\"))","v":""},"",null,null,{"$f":"IF(INDIRECT(\"'\"&H15&\"'!LB597\")=0,\"\",INDIRECT(\"'\"&H15&\"'!LB597\"))","v":{"$error":"#REF!"}},{"$f":"IF(INDIRECT(\"'\"&H15&\"'!LB589\")=0,\"\",INDIRECT(\"'\"&H15&\"'!LB589\"))","v":{"$error":"#REF!"}},{"$f":"IFERROR(IF(ROWS(S$2:S15)>COUNTA($Q$2:$Q$20),\"\",INDEX($Q$2:$Q$20,_xlfn.AGGREGATE(15,6,(ROW($Q$2:$Q$20)-ROW($Q$2)+1)/($Q$2:$Q$20<>\"\"),ROWS(S$2:S15)))),\"\")","v":""},{"$f":"IFERROR(IF(ROWS(T$2:T15)>COUNTA($R$2:$R$20),\"\",INDEX($R$2:$R$20,_xlfn.AGGREGATE(15,6,(ROW($R$2:$R$20)-ROW($R$2)+1)/($R$2:$R$20<>\"\"),ROWS(T$2:T15)))),\"\")","v":""}]
["Allgemeine Projektangaben",0,"B",18,"Kundenangaben (produktspezifisch)","Customer information (product-specific)","",{"$f":"IFERROR(MID(INDEX(Listsheets,ROW(A15)),FIND(\"]\",INDEX(Listsheets,ROW(A15)))+1,31),\"\")","v":""},null,"",{"$f":"IF(H16=\"\",\"\",IFERROR(SMALL(IF(IFERROR(SEARCH($K$1,$H$1:$H$232)>0,FALSE),ROW($H$1:$H$232)),ROW()-1),\"\"))","v":""},"",null,null,null,null,{"$f":"IF(INDIRECT(\"'\"&H16&\"'!LB597\")=0,\"\",INDIRECT(\"'\"&H16&\"'!LB597\"))","v":{"$error":"#REF!"}},{"$f":"IF(INDIRECT(\"'\"&H16&\"'!LB589\")=0,\"\",INDIRECT(\"'\"&H16&\"'!LB589\"))","v":{"$error":"#REF!"}},{"$f":"IFERROR(IF(ROWS(S$2:S16)>COUNTA($Q$2:$Q$20),\"\",INDEX($Q$2:$Q$20,_xlfn.AGGREGATE(15,6,(ROW($Q$2:$Q$20)-ROW($Q$2)+1)/($Q$2:$Q$20<>\"\"),ROWS(S$2:S16)))),\"\")","v":""},{"$f":"IFERROR(IF(ROWS(T$2:T16)>COUNTA($R$2:$R$20),\"\",INDEX($R$2:$R$20,_xlfn.AGGREGATE(15,6,(ROW($R$2:$R$20)-ROW($R$2)+1)/($R$2:$R$20<>\"\"),ROWS(T$2:T16)))),\"\")","v":""}]
["Allgemeine Projektangaben",0,"B",19,"Prüfberichts-Nr.:","Test report no.:","",{"$f":"IFERROR(MID(INDEX(Listsheets,ROW(A16)),FIND(\"]\",INDEX(Listsheets,ROW(A16)))+1,31),\"\")","v":""},null,"",{"$f":"IF(H17=\"\",\"\",IFERROR(SMALL(IF(IFERROR(SEARCH($K$1,$H$1:$H$232)>0,FALSE),ROW($H$1:$H$232)),ROW()-1),\"\"))","v":""},"",null,null,null,null,{"$f":"IF(INDIRECT(\"'\"&H17&\"'!LB597\")=0,\"\",INDIRECT(\"'\"&H17&\"'!LB597\"))","v":{"$error":"#REF!"}},{"$f":"IF(INDIRECT(\"'\"&H17&\"'!LB589\")=0,\"\",INDIRECT(\"'\"&H17&\"'!LB589\"))","v":{"$error":"#REF!"}},{"$f":"IFERROR(IF(ROWS(S$2:S17)>COUNTA($Q$2:$Q$20),\"\",INDEX($Q$2:$Q$20,_xlfn.AGGREGATE(15,6,(ROW($Q$2:$Q$20)-ROW($Q$2)+1)/($Q$2:$Q$20<>\"\"),ROWS(S$2:S17)))),\"\")","v":""},{"$f":"IFERROR(IF(ROWS(T$2:T17)>COUNTA($R$2:$R$20),\"\",INDEX($R$2:$R$20,_xlfn.AGGREGATE(15,6,(ROW($R$2:$R$20)-ROW($R$2)+1)/($R$2:$R$20<>\"\"),ROWS(T$2:T17)))),\"\")","v":""}]
["Allgemeine Projektangaben",0,"B",20,"Version:","Version:","",{"$f":"IFERROR(MID(INDEX(Listsheets,ROW(A17)),FIND(\"]\",INDEX(Listsheets,ROW(A17)))+1,31),\"\")","v":""},null,"",{"$f":"IF(H18=\"\",\"\",IFERROR(SMALL(IF(IFERROR(SEARCH($K$1,$H$1:$H$232)>0,FALSE),ROW($H$1:$H$232)),ROW()-1),\"\"))","v":""},"",null,null,null,null,{"$f":"IF(INDIRECT(\"'\"&H18&\"'!LB597\")=0,\"\",INDIRECT(\"'\"&H18&\"'!LB597\"))","v":{"$error":"#REF!"}},{"$f":"IF(INDIRECT(\"'\"&H18&\"'!LB589\")=0,\"\",INDIRECT(\"'\"&H18&\"'!LB589\"))","v":{"$error":"#REF!"}},{"$f":"IFERROR(IF(ROWS(S$2:S18)>COUNTA($Q$2:$Q$20),\"\",INDEX($Q$2:$Q$20,_xlfn.AGGREGATE(15,6,(ROW($Q$2:$Q$20)-ROW($Q$2)+1)/($Q$2:$Q$20<>\"\"),ROWS(S$2:S18)))),\"\")","v":""},{"$f":"IFERROR(IF(ROWS(T$2:T18)>COUNTA($R$2:$R$20),\"\",INDEX($R$2:$R$20,_xlfn.AGGREGATE(15,6,(ROW($R$2:$R$20)-ROW($R$2)+1)/($R$2:$R$20<>\"\"),ROWS(T$2:T18)))),\"\")","v":""}]
["Allgemeine Projektangaben",0,"B",21,"Sach-Nr.:","Part no.:","",{"$f":"IFERROR(MID(INDEX(Listsheets,ROW(A18)),FIND(\"]\",INDEX(Listsheets,ROW(A18)))+1,31),\"\")","v":""},null,"",{"$f":"IF(H19=\"\",\"\",IFERROR(SMALL(IF(IFERROR(SEARCH($K$1,$H$1:$H$232)>0,FALSE),ROW($H$1:$H$232)),ROW()-1),\"\"))","v":""},""]
["Allgemeine Projektangaben",0,"B",22,"Zeichnungs-Nr.:","Drawing no.:","",{"$f":"IFERROR(MID(INDEX(Listsheets,ROW(A19)),FIND(\"]\",INDEX(Listsheets,ROW(A19)))+1,31),\"\")","v":""},null,"",{"$f":"IF(H20=\"\",\"\",IFERROR(SMALL(IF(IFERROR(SEARCH($K$1,$H$1:$H$232)>0,FALSE),ROW($H$1:$H$232)),ROW()-1),\"\"))","v":""},""]
["Allgemeine Projektangaben",0,"B",23,"Stand / Datum:","Status / Date:","",{"$f":"IFERROR(MID(INDEX(Listsheets,ROW(A20)),FIND(\"]\",INDEX(Listsheets,ROW(A20)))+1,31),\"\")","v":""},null,"",{"$f":"IF(H21=\"\",\"\",IFERROR(SMALL(IF(IFERROR(SEARCH($K$1,$H$1:$H$232)>0,FALSE),ROW($H$1:$H$232)),ROW()-1),\"\"))","v":""},""]
["Allgemeine Projektangaben",0,"B",24,"Änderungs-Nr.:","ECN (Engineering Change No.):","",{"$f":"IFERROR(MID(INDEX(Listsheets,ROW(A21)),FIND(\"]\",INDEX(Listsheets,ROW(A21)))+1,31),\"\")","v":""},null,"",{"$f":"IF(H22=\"\",\"\",IFERROR(SMALL(IF(IFERROR(SEARCH($K$1,$H$1:$H$232)>0,FALSE),ROW($H$1:$H$232)),ROW()-1),\"\"))","v":""},""]
["Allgemeine Projektangaben",0,"B",25,"Benennung:","Title:","",{"$f":"IFERROR(MID(INDEX(Listsheets,ROW(A22)),FIND(\"]\",INDEX(Listsheets,ROW(A22)))+1,31),\"\")","v":""},null,"",{"$f":"IF(H23=\"\",\"\",IFERROR(SMALL(IF(IFERROR(SEARCH($K$1,$H$1:$H$232)>0,FALSE),ROW($H$1:$H$232)),ROW()-1),\"\"))","v":""},""]
["Allgemeine Projektangaben",0,"B",26,"Wareneingangs-Nr. /-datum:","Goods receipt no. / Date:","",{"$f":"IFERROR(MID(INDEX(Listsheets,ROW(A23)),FIND(\"]\",INDEX(Listsheets,ROW(A23)))+1,31),\"\")","v":""},null,"",{"$f":"IF(H24=\"\",\"\",IFERROR(SMALL(IF(IFERROR(SEARCH($K$1,$H$1:$H$232)>0,FALSE),ROW($H$1:$H$232)),ROW()-1),\"\"))","v":""},""]
["Allgemeine Projektangaben",0,"B",27,"Abladestelle:","Place of unloading:","",{"$f":"IFERROR(MID(INDEX(Listsheets,ROW(A24)),FIND(\"]\",INDEX(Listsheets,ROW(A24)))+1,31),\"\")","v":""},null,"",{"$f":"IF(H25=\"\",\"\",IFERROR(SMALL(IF(IFERROR(SEARCH($K$1,$H$1:$H$232)>0,FALSE),ROW($H$1:$H$232)),ROW()-1),\"\"))","v":""},""]
["Allgemeine Projektangaben",0,"B",29,"Lieferantenangaben (allgemein)","Supplier information (general)","",{"$f":"IFERROR(MID(INDEX(Listsheets,ROW(A25)),FIND(\"]\",INDEX(Listsheets,ROW(A25)))+1,31),\"\")","v":""},null,"",null,{"$f":"IF(H26=\"\",\"\",IFERROR(INDEX($G$1:$L$39,M2,J26),\"\"))","v":""}]
["Allgemeine Projektangaben",0,"B",30,"Kenn-Nr. Lieferant:","Supplier identification no.:","",{"$f":"IFERROR(MID(INDEX(Listsheets,ROW(A26)),FIND(\"]\",INDEX(Listsheets,ROW(A26)))+1,31),\"\")","v":""},null,"",null,""]
["Allgemeine Projektangaben",0,"B",31,"Prüfberichts-Nr.:","Test report no.:","",{"$f":"IFERROR(MID(INDEX(Listsheets,ROW(A27)),FIND(\"]\",INDEX(Listsheets,ROW(A27)))+1,31),\"\")","v":""},null,"",null,""]
["Allgemeine Projektangaben",0,"B",32,"Version:","Version:","",{"$f":"IFERROR(MID(INDEX(Listsheets,ROW(A28)),FIND(\"]\",INDEX(Listsheets,ROW(A28)))+1,31),\"\")","v":""},null,null,null,""]
["Allgemeine Projektangaben",0,"B",33,"Name:","Name:",null,{"$f":"IFERROR(MID(INDEX(Listsheets,ROW(A29)),FIND(\"]\",INDEX(Listsheets,ROW(A29)))+1,31),\"\")","v":""},null,null,null,""]
["Allgemeine Projektangaben",0,"B",34,"Abteilung:","Department:",null,{"$f":"IFERROR(MID(INDEX(Listsheets,ROW(A30)),FIND(\"]\",INDEX(Listsheets,ROW(A30)))+1,31),\"\")","v":""},null,null,null,""]
["Allgemeine Projektangaben",0,"B",35,"Tel / E-Mail:","Phone / E-Mail:",null,null,null,null,null,""]
["Allgemeine Projektangaben",0,"B",37,"Lieferantenangaben (produktspezifisch)","Supplier information (product-specific)",null,{"$f":"D33-1","v":36}]
["Allgemeine Projektangaben",0,"B",38,"Sach-Nr.:","Part no.:",null,{"$f":"D34-1","v":37}]
["Allgemeine Projektangaben",0,"B",39,"Zeichnungs-Nr.:","Drawing no.:",null,38]
["Allgemeine Projektangaben",0,"B",40,"Stand / Datum / Q-Stand:","Status / Date / Q-level:",null,39]
["Allgemeine Projektangaben",0,"B",41,"Änderungs-Nr.:","ECN (Engineering Change No.):",null,40]
["Allgemeine Projektangaben",0,"B",42,"Benennung:","Description:",null,41]
["Allgemeine Projektangaben",0,"B",43,"Bestellabruf-Nr. /-datum:","Order call no. / Date:",null,42]
["Allgemeine Projektangaben",0,"B",44,"Lieferschein-Nr. /-datum:","Delivery note no. / Date:",null,43]
["Allgemeine Projektangaben",0,"B",45,"Liefermenge:","Delivery volume:",null,44]
["Allgemeine Projektangaben",0,"B",46,"Chargen-Nr.:","Batch no.:",null,45]
["Allgemeine Projektangaben",0,"B",47,"Mustergewicht - 5 Stk. xquer [kg]:","Sample weight - 5 pcs in average [kg]:",null,46]
["Allgemeine Projektangaben",0,"B",49,"Verteiler:","Distributor:",null,48]
["Allgemeine Projektangaben",0,"B",56,"Ablage:","Filing:",null,55]
["Deckblatt",0,"AA",3," Bericht Produktionsprozess- und Produktfreigabe (PPF)"," Production Process and Product Release (PPF) Report"]
["Deckblatt",0,"AA",4," Erstmusterprüfbericht VDA"," Initial sample inspection report VDA"]
["Deckblatt",0,"AC",5," Bemusterungsgrund"," Sampling reason"]
["Deckblatt",0,"AF",6," Erstbemusterung"," Initial sampling"]
["Deckblatt",0,"AF",7," Nachbemusterung"," Resampling"]
["Deckblatt",0,"AF",8," Neuteil"," New part"]
["Deckblatt",0,"AF",9," Produktänderung"," Product change"]
["Deckblatt",0,"AF",10," Produktionsverlagerung"," Production relocation"]
["Deckblatt",0,"AF",11," Änderung von Produktionsverfahren"," Process change"]
["Deckblatt",0,"AF",12," längeres Aussetzten der Fertigung","Longer interruption of production"]
["Deckblatt",0,"AF",13," Änderung in der Lieferkette (neuer Lieferant)","Change in the supply chain (new supplier)"]
["Deckblatt",0,"AF",14," Dokumentationspflichtes Teil"," Documentation part"]
["Deckblatt",0,"AF",15," FMEA durchgeführt"," FMEA performed"]
["Deckblatt",0,"AF",16," Prüfbericht sonstiger Muster"," Report of other samples"]
["Deckblatt",0,"C",18,"Anlagen / Einsichtnahme","Enclosures / Insight"]
["Deckblatt",0,"C",19,"        1.1 Geometrie, Maßprüfung","         1.1 Geometry, dimensional check"]
["Deckblatt",0,"C",20,"         1.2 Funktionsprüfung","         1.2 Function check"]
["Deckblatt",0,"C",21,"        1.3 Werkstoffprüfung","         1.3 Material check"]
["Deckblatt",0,"C",22,"        1.4 Haptikprüfung","         1.4 Haptic check"]
["Deckblatt",0,"C",23,"        1.5 Akustikprüfung","         1.5 Acoustics check"]
["Deckblatt",0,"C",24,"        1.6 Geruchsprüfung","         1.6 Odour check"]
["Deckblatt",0,"C",25,"        1.7 Aussehensprüfung","         1.7 Appearance check"]
["Deckblatt",0,"C",26,"        1.8 Oberflächenprüfung","         1.8 Surface check"]
["Deckblatt",0,"C",27,"        1.9 ESD – Prüfung","         1.9 ESD test"]
["Deckblatt",0,"C",28,"        1.10 Zuverlässigkeitsprüfungen","         1.10 Reliability tests"]
["Deckblatt",0,"C",29,"        2 Muster","         2 Samples"]
["Deckblatt",0,"Q",19,"   3 Technische Spezifikationen","   3 Technical specifications"]
["Deckblatt",0,"Q",20,"   4 Produkt-FMEA","   4 Product FMEA"]
["Deckblatt",0,"Q",21,"   5 Konstruktionsfreigabe","   5 Design release"]
["Deckblatt",0,"Q",22,"   6 Einhaltung gesetzlicher Forderungen","   6 Compliance with legal requirements"]
["Deckblatt",0,"Q",23,"   7 Materialdatenblatt/IMDS","   7 Material data sheet / IMDS"]
["Deckblatt",0,"Q",24,"   8 Softwareprüfbericht","   8 Software test report"]
["Deckblatt",0,"Q",25,"   9 Prozess-FMEA","   9 Process FMEA"]
["Deckblatt",0,"Q",26,"  10 Prozessablaufdiagramm","   10 Process flow diagram"]
["Deckblatt",0,"Q",27,"  11 Produktionslenkungsplan","   11 Control plan"]
["Deckblatt",0,"Q",28,"  12 Prozessfähigkeitsnachweis","   12 Confirmation of process capability"]
["Deckblatt",0,"Q",29,"  13 Absicherung besondere Merkmale","   13 Achievement of special characteristics"]
["Deckblatt",0,"AD",19," 14 Prüfmittelliste"," 14 Test / Inspection equipment list"]
["Deckblatt",0,"AD",20," 15 Prüfmittelfähigkeitsnachweis"," 15 Capability study testing equipment"]
["Deckblatt",0,"AD",21," 16 Werkzeugübersicht"," 16 Tooling list"]
["Deckblatt",0,"AD",22," 17 Nachweis vereinbarte Kapazität"," 17 Confirmation of agreed capacity"]
["Deckblatt",0,"AD",23," 18 Schriftliche Selbstbewertung"," 18 Written self-assessment"]
["Deckblatt",0,"AD",24," 19 Teilelebenslauf"," 19 Part history"]
["Deckblatt",0,"AD",25," 20 Eignungsnachweis Ladungsträger inkl. Lagerung"," 20 Confirmation of suitability of transport equipment"]
["Deckblatt",0,"AD",26," 21 PPF-Status Lieferkette"," 21 PPA Status of the supply chain"]
["Deckblatt",0,"AD",27," 22 Freigabe von Beschichtungssystemen"," 22 Approval of coating systems "]
["Deckblatt",0,"AD",28," 23 Sonstiges"," 23 Others"]
["Deckblatt",0,"B",31,"Kennnummer Lieferant:","Supplier identification no.:"]
["Deckblatt",0,"X",31,"Kennnummer Kunde:","Customer identification no.:"]
["Deckblatt",0,"B",32,"Prüfberichts-Nr.:","Report no.:"]
["Deckblatt",0,"S",32,"Version:","Version:"]
["Deckblatt",0,"X",32,"Prüfberichts-Nr.:","Report no.:"]
["Deckblatt",0,"AN",32,"Version:","Version:"]
["Deckblatt",0,"B",33,"Sachnummer:","Part number:"]
["Deckblatt",0,"B",34,"Zeichnungsnummer:","Drawing number:"]
["Deckblatt",0,"B",35,"Stand / Datum / Q-Stand:","Status / Date / Q-level:"]
["Deckblatt",0,"B",36,"Änderungsnummer:","ECN (Engineering Change No.):"]
["Deckblatt",0,"B",37,"Benennung:","Title:"]
["Deckblatt",0,"B",38,"Bestellabruf-Nr. / -datum:","Order call no. / Date:"]
["Deckblatt",0,"X",33,"Sachnummer:","Part number:"]
["Deckblatt",0,"X",34,"Zeichnungsnummer:","Drawing number:"]
["Deckblatt",0,"X",35,"Stand / Datum:","Status / Date:"]
["Deckblatt",0,"X",36,"Änderungsnummer:","ECN (Engineering Change No.):"]
["Deckblatt",0,"X",37,"Benennung:","Title:"]
["Deckblatt",0,"X",38,"Bestellabruf-Nr. / -datum:","Order call no. / Date:"]
["Deckblatt",0,"B",39,"Lieferschein-Nr. /-datum:","Delivery note no. / Date:"]
["Deckblatt",0,"X",39,"Wareneingangs-Nr. /-datum:","Goods receipt no. / Date:"]
["Deckblatt",0,"B",40,"Liefermenge:","Delivery volume:"]
["Deckblatt",0,"B",41,"Chargen-Nr.:","Batch no.:"]
["Deckblatt",0,"B",42,"Mustergewicht [kg]:","Weight of samples [kg]:"]
["Deckblatt",0,"X",40,"Abladestelle:","Place of unloading:"]
["Deckblatt",0,"B",44,"Bestätigung Lieferant: ","Confirmation of supplier:"]
["Deckblatt",0,"B",45,"Hiermit wird bestätigt, dass die Bemusterung entsprechend der VDA Schrift 2 Ziffer 4 durchgeführt worden ist","Hereby we confirm that the sampling has been carried out according to the VDA volume 2 number 4"]
["Deckblatt",0,"B",46,"Name:","Name:"]
["Deckblatt",0,"B",47,"Abteilung:","Department:"]
["Deckblatt",0,"B",48,"Tel /\nE-Mail:","Phone /\nE-Mail:"]
["Deckblatt",0,"B",52,"Datum","Date"]
["Deckblatt",0,"P",52,"Unterschrift","Signature"]
["Deckblatt",0,"X",46,"Bemerkung:","Remarks:"]
["Deckblatt",0,"B",54,"Entscheidung Kunde:","Customer decision:"]
["Deckblatt",0,"B",56,"frei","released"]
["Deckblatt",0,"B",57,"frei mit Auflagen","released with deviations"]
["Deckblatt",0,"B",58,"abgelehnt, Nachbemusterung erforderderlich","rejected, resampling required"]
["Deckblatt",0,"B",60,"Abweich-Genehmigung-Nr.:","Deviation approval no.:"]
["Deckblatt",0,"B",61,"bei Rücksendung Lieferschein-Nr.:/-datum:","Return delivery no :/ date.:"]
["Deckblatt",0,"K",54,"gesamt","total"]
["Deckblatt",0,"M",54,"gemäß Anlagen:","according to enclosures:"]
["Deckblatt",0,"B",63,"Name:","Name:"]
["Deckblatt",0,"B",64,"Abteilung:","Department:"]
["Deckblatt",0,"B",65,"Tel /\nE-Mail:","Phone /\nE-Mail:"]
["Deckblatt",0,"B",69,"Datum","Date"]
["Deckblatt",0,"P",69,"Unterschrift","Signature"]
["Deckblatt",0,"X",63,"Bemerkung:","Remarks:"]
["Deckblatt",0,"B",71,"Verteiler:","Distributor:"]
["Inhalt des PPF-Berichts",0,"B",6,"Kundenangaben","Customer information"]
["Inhalt des PPF-Berichts",0,"E",2,"Inhalt des Produktionsprozess- und Produktfreigabe (PPF)","Content of production Process and Product Release (PPF)"]
["Inhalt des PPF-Berichts",0,"F",6,"Lieferantenangaben","Supplier information"]
["Inhalt des PPF-Berichts",0,"F",17,"Anwendbar","Applicable"]
["Inhalt des PPF-Berichts",0,"B",17,"Anlagen / Einsichtnahme","Enclosures / Insight"]
["Inhalt des PPF-Berichts",0,"G",17,"Stand / Datum","Status / Date"]
["Inhalt des PPF-Berichts",0,"I",17,"Art, Umfang und Kennzeichnung der Anlage","Type, scope and description of annexure"]
["Inhalt des PPF-Berichts",0,"B",18,"1.1 Geometrie, Maßprüfung","1.1 Geometry, dimensional check"]
["Inhalt des PPF-Berichts",0,"B",19,"1.2 Funktionsprüfung","1.2 Function check"]
["Inhalt des PPF-Berichts",0,"B",20,"1.3 Werkstoffprüfung","1.3 Material check"]
["Inhalt des PPF-Berichts",0,"B",21,"1.4 Haptikprüfung","1.4 Haptic check"]
["Inhalt des PPF-Berichts",0,"B",22,"1.5 Akustikprüfung","1.5 Acoustics check"]
["Inhalt des PPF-Berichts",0,"B",23,"1.6 Geruchsprüfung","1.6 Odour check"]
["Inhalt des PPF-Berichts",0,"B",24,"1.7 Aussehensprüfung","1.7 Appearance check"]
["Inhalt des PPF-Berichts",0,"B",25,"1.8 Oberflächenprüfung","1.8 Surface check"]
["Inhalt des PPF-Berichts",0,"B",26,"1.9 ESD – Prüfung","1.9 ESD test"]
["Inhalt des PPF-Berichts",0,"B",27,"1.10 Zuverlässigkeitsprüfungen","1.10 Reliability tests"]
["Inhalt des PPF-Berichts",0,"B",28,"2 Muster","2 Samples"]
["Inhalt des PPF-Berichts",0,"B",29,"3 Technische Spezifikationen","3 Technical specifications"]
["Inhalt des PPF-Berichts",0,"B",30,"4 Produkt-FMEA","4 Product FMEA"]
["Inhalt des PPF-Berichts",0,"B",31,"5 Konstruktionsfreigabe","5 Design release"]
["Inhalt des PPF-Berichts",0,"B",32,"6 Einhaltung gesetzlicher Forderungen","6 Compliance with legal requirements"]
["Inhalt des PPF-Berichts",0,"B",33,"7 Materialdatenblatt/IMDS","7 Material data sheet / IMDS"]
["Inhalt des PPF-Berichts",0,"B",34,"8 Softwareprüfbericht","8 Software test report"]
["Inhalt des PPF-Berichts",0,"B",35,"9 Prozess-FMEA","9 Process FMEA"]
["Inhalt des PPF-Berichts",0,"B",36,"10 Prozessablaufdiagramm","10 Process flow diagram"]
["Inhalt des PPF-Berichts",0,"B",37,"11 Produktionslenkungsplan","11 Control plan"]
["Inhalt des PPF-Berichts",0,"B",38,"12 Prozessfähigkeitsnachweis","12 Confirmation of process capability"]
["Inhalt des PPF-Berichts",0,"B",39,"13 Absicherung besondere Merkmale","13 Achievement of special characteristics"]
["Inhalt des PPF-Berichts",0,"B",40,"14 Prüfmittelliste","14 Test / Inspection equipment list"]
["Inhalt des PPF-Berichts",0,"B",41,"15 Prüfmittelfähigkeitsnachweis","15 Capability study testing equipment"]
["Inhalt des PPF-Berichts",0,"B",42,"16 Werkzeugübersicht","16 Tooling list"]
["Inhalt des PPF-Berichts",0,"B",43,"17 Nachweis vereinbarte Kapazität","17 Confirmation of agreed capacity"]
["Inhalt des PPF-Berichts",0,"B",44,"18 Schriftliche Selbstbewertung","18 Written self-assessment"]
["Inhalt des PPF-Berichts",0,"B",45,"19 Teilelebenslauf","19 Part history"]
["Inhalt des PPF-Berichts",0,"B",46,"20 Eignungsnachweis Ladungsträger inkl. Lagerung","20 Confirmation of suitability of transport equipment"]
["Inhalt des PPF-Berichts",0,"B",47,"21 PPF-Status Lieferkette","21 PPA Status of the supply chain"]
["Inhalt des PPF-Berichts",0,"B",48,"22 Freigabe von Beschichtungssystemen","22 Approval of coating systems "]
["Inhalt des PPF-Berichts",0,"B",49,"23 Sonstiges","23 Others"]
["Inhalt des PPF-Berichts",0,"B",51,"Bemerkungen Lieferant:","Supplier remarks:"]
["Inhalt des PPF-Berichts",0,"B",54,"Name:","Name:"]
["Inhalt des PPF-Berichts",0,"B",55,"Abteilung:","Department:"]
["Inhalt des PPF-Berichts",0,"H",56,"Unterschrift:","Signature:"]
["Inhalt des PPF-Berichts",0,"B",56,"Datum: ","Date:"]
[{"$f":"IF(S2=\"\",\"\",S2)","v":""},0,"F",1,"Prüfergebnisse","Inspection results",1]
[{"$f":"$A$184","v":""},0,"B",7,"Sach- / Zeichnungs- / Änderungs-Nr. / Stand / Datum / Q- Stand:","Part no./ Drawing no. / ECN / Status / Date / Q-level:"]
["",0,"I",7,"Sach- / Zeichnungs- / Änderungs-Nr. / Stand / Datum:","Part no./ Drawing no. / ECN / Status / Date:"]
["",0,"B",11,"Ref.-Nr.","Ref.-No."]
["",0,"C",11,"Prüf-mittel","Testing equip-\nment"]
["",0,"E",11,"obere Grenz-wert","max. Specifi-cation"]
["",0,"F",11,"untere Grenz-wert","min. Specifi-cation"]
["",0,"G",11,"Ist-Werte Lieferant (ohne Zusatzangabe Ø, R, °,etc.)","Actual values ​​supplier (without additional information Ø, R, °,etc.)"]
["",0,"D",11,"Forderungen (mit Zusatzangabe Ø, R, °,etc.)","Requirements (with additional information Ø, R, °,etc.)"]
["",0,"O",11,"Bewertung","Evaluation"]
["",0,"G",12,"Teil 1","Part 1"]
["",0,"H",12,"Teil 2","Part 2"]
["",0,"I",12,"Teil 3","Part 3"]
["",0,"J",12,"Teil 4","Part 4"]
["",0,"K",12,"Teil 5","Part 5"]
["",0,"L",12,"Teil 6","Part 6"]
["",0,"M",12,"Teil 7","Part 7"]
["",0,"N",12,"Teil 8","Part 8"]
["",0,"O",12,"Bemerkung","Remark"]
["",0,"P",12,"Entscheidung","Decision"]
[{"$f":"IF(S3=\"\",\"\",S3)","v":""},0,"F",1,"Prüfergebnisse","Inspection results",2]
[{"$f":"$A$204","v":""},0,"B",7,"Sach- / Zeichnungs- / Änderungs-Nr. / Stand / Datum / Q- Stand:","Part no./ Drawing no. / ECN / Status / Date / Q-level:"]
["",0,"I",7,"Sach- / Zeichnungs- / Änderungs-Nr. / Stand / Datum:","Part no./ Drawing no. / ECN / Status / Date:"]
["",0,"B",11,"Ref.-Nr.","Ref.-No."]
["",0,"C",11,"Prüf-mittel","Testing equip-\nment"]
["",0,"E",11,"obere Grenz-wert","max. Specifi-cation"]
["",0,"F",11,"untere Grenz-wert","min. Specifi-cation"]
["",0,"G",11,"Ist-Werte Lieferant (ohne Zusatzangabe Ø, R, °,etc.)","Actual values ​​supplier (without additional information Ø, R, °,etc.)"]
["",0,"D",11,"Forderungen (mit Zusatzangabe Ø, R, °,etc.)","Requirements (with additional information Ø, R, °,etc.)"]
["",0,"O",11,"Bewertung","Evaluation"]
["",0,"G",12,"Teil 1","Part 1"]
["",0,"H",12,"Teil 2","Part 2"]
["",0,"I",12,"Teil 3","Part 3"]
["",0,"J",12,"Teil 4","Part 4"]
["",0,"K",12,"Teil 5","Part 5"]
["",0,"L",12,"Teil 6","Part 6"]
["",0,"M",12,"Teil 7","Part 7"]
["",0,"N",12,"Teil 8","Part 8"]
["",0,"O",12,"Bemerkung","Remark"]
["",0,"P",12,"Entscheidung","Decision"]
[{"$f":"IF(S4=\"\",\"\",S4)","v":""},0,"F",1,"Prüfergebnisse","Inspection results",3]
[{"$f":"$A$224","v":""},0,"B",7,"Sach- / Zeichnungs- / Änderungs-Nr. / Stand / Datum / Q- Stand:","Part no./ Drawing no. / ECN / Status / Date / Q-level:"]
["",0,"I",7,"Sach- / Zeichnungs- / Änderungs-Nr. / Stand / Datum:","Part no./ Drawing no. / ECN / Status / Date:"]
["",0,"B",11,"Ref.-Nr.","Ref.-No."]
["",0,"C",11,"Prüf-mittel","Testing equip-\nment"]
["",0,"E",11,"obere Grenz-wert","max. Specifi-cation"]
["",0,"F",11,"untere Grenz-wert","min. Specifi-cation"]
["",0,"G",11,"Ist-Werte Lieferant (ohne Zusatzangabe Ø, R, °,etc.)","Actual values ​​supplier (without additional information Ø, R, °,etc.)"]
["",0,"D",11,"Forderungen (mit Zusatzangabe Ø, R, °,etc.)","Requirements (with additional information Ø, R, °,etc.)"]
["",0,"O",11,"Bewertung","Evaluation"]
["",0,"G",12,"Teil 1","Part 1"]
["",0,"H",12,"Teil 2","Part 2"]
["",0,"I",12,"Teil 3","Part 3"]
["",0,"J",12,"Teil 4","Part 4"]
["",0,"K",12,"Teil 5","Part 5"]
["",0,"L",12,"Teil 6","Part 6"]
["",0,"M",12,"Teil 7","Part 7"]
["",0,"N",12,"Teil 8","Part 8"]
["",0,"O",12,"Bemerkung","Remark"]
["",0,"P",12,"Entscheidung","Decision"]
[{"$f":"IF(S5=\"\",\"\",S5)","v":""},0,"F",1,"Prüfergebnisse","Inspection results",4]
[{"$f":"$A$244","v":""},0,"B",7,"Sach- / Zeichnungs- / Änderungs-Nr. / Stand / Datum / Q- Stand:","Part no./ Drawing no. / ECN / Status / Date / Q-level:"]
["",0,"I",7,"Sach- / Zeichnungs- / Änderungs-Nr. / Stand / Datum:","Part no./ Drawing no. / ECN / Status / Date:"]
["",0,"B",11,"Ref.-Nr.","Ref.-No."]
["",0,"C",11,"Prüf-mittel","Testing equip-\nment"]
["",0,"E",11,"obere Grenz-wert","max. Specifi-cation"]
["",0,"F",11,"untere Grenz-wert","min. Specifi-cation"]
["",0,"G",11,"Ist-Werte Lieferant (ohne Zusatzangabe Ø, R, °,etc.)","Actual values ​​supplier (without additional information Ø, R, °,etc.)"]
["",0,"D",11,"Forderungen (mit Zusatzangabe Ø, R, °,etc.)","Requirements (with additional information Ø, R, °,etc.)"]
["",0,"O",11,"Bewertung","Evaluation"]
["",0,"G",12,"Teil 1","Part 1"]
["",0,"H",12,"Teil 2","Part 2"]
["",0,"I",12,"Teil 3","Part 3"]
["",0,"J",12,"Teil 4","Part 4"]
["",0,"K",12,"Teil 5","Part 5"]
["",0,"L",12,"Teil 6","Part 6"]
["",0,"M",12,"Teil 7","Part 7"]
["",0,"N",12,"Teil 8","Part 8"]
["",0,"O",12,"Bemerkung","Remark"]
["",0,"P",12,"Entscheidung","Decision"]
[{"$f":"IF(S6=\"\",\"\",S6)","v":""},0,"F",1,"Prüfergebnisse","Inspection results",5]
[{"$f":"$A$264","v":""},0,"B",7,"Sach- / Zeichnungs- / Änderungs-Nr. / Stand / Datum / Q- Stand:","Part no./ Drawing no. / ECN / Status / Date / Q-level:"]
["",0,"I",7,"Sach- / Zeichnungs- / Änderungs-Nr. / Stand / Datum:","Part no./ Drawing no. / ECN / Status / Date:"]
["",0,"B",11,"Ref.-Nr.","Ref.-No."]
["",0,"C",11,"Prüf-mittel","Testing equip-\nment"]
["",0,"E",11,"obere Grenz-wert","max. Specifi-cation"]
["",0,"F",11,"untere Grenz-wert","min. Specifi-cation"]
["",0,"G",11,"Ist-Werte Lieferant (ohne Zusatzangabe Ø, R, °,etc.)","Actual values ​​supplier (without additional information Ø, R, °,etc.)"]
["",0,"D",11,"Forderungen (mit Zusatzangabe Ø, R, °,etc.)","Requirements (with additional information Ø, R, °,etc.)"]
["",0,"O",11,"Bewertung","Evaluation"]
["",0,"G",12,"Teil 1","Part 1"]
["",0,"H",12,"Teil 2","Part 2"]
["",0,"I",12,"Teil 3","Part 3"]
["",0,"J",12,"Teil 4","Part 4"]
["",0,"K",12,"Teil 5","Part 5"]
["",0,"L",12,"Teil 6","Part 6"]
["",0,"M",12,"Teil 7","Part 7"]
["",0,"N",12,"Teil 8","Part 8"]
["",0,"O",12,"Bemerkung","Remark"]
["",0,"P",12,"Entscheidung","Decision"]
[{"$f":"IF(T2=\"\",\"\",T2)","v":""},0,"F",2,"Fähigkeitsanalyse","Capability Study ",1]
[{"$f":"$A$284","v":""},0,"B",6,"Material Nr.","Part Nr."]
[{"$f":"$A$284","v":""},0,"F",6,"Zeichnungs-Nr.:","Drawing Nr."]
["",0,"K",6,"Prüfmittel","Testing equipment"]
["",0,"N",8,"Durchwahl","Phone"]
["",0,"Q",8,"Datum","Date"]
["",0,"B",8,"Benennung","Title"]
["",0,"F",8,"Charge Nr.","Batch Nr."]
["",0,"O",6,"Prüfer","Done by"]
["",0,"K",8,"Abteilung","Department"]
["",0,"B",10,"Graue Felder nicht ausfüllen\n","Do not fill up in grey fields"]
["",0,"F",10,"Änderungsnr.","Change Nr."]
["",0,"N",2,"Prozessfähigkeit","Process capability"]
["",0,"M",10,"Kavitäten & Kennzeichnung","Cavities & Marking"]
["",0,"B",11,"Bemerkung","Comments"]
["",0,"H",14,"Forderung","Requirement"]
["",0,"L",14,"obere Grenzwert","max. Specification"]
["",0,"N",14,"untere Grenzwert","min. Specification"]
["",0,"J",14,"Sollmaß","Nominal Value"]
["",0,"P",14,"Einheit","Unit"]
["",0,"H",17,"Anzahl Daten:","Data Quantity:"]
["",0,"H",18,"Mittelwert:","Average:"]
["",0,"H",19,"Standard Abweichung:","Standard Deviation:"]
["",0,"H",20,"Größter Wert:","Maximum Value:"]
["",0,"H",21,"Kleinster Wert:","Minimum Value:"]
["",0,"H",22,"Wölbung","Kurtosis"]
["",0,"K",22,"Schiefe","Skew"]
["",0,"H",26,"obere Grenzwert:","max. Specification:"]
["",0,"H",27,"untere Grenzwert:","min. Specification:"]
["",0,"H",30,"UG verletzung(ppm):","Out of USL (ppm):"]
["",0,"H",31,"UG verletzung(ppm):","Out of LSL (ppm):"]
["",0,"H",32,"Gesamt Abweichung:","Total out of Spec.:"]
["",0,"B",292,"Normalverteilung","Normal Distribution"]
[{"$f":"IF(T3=\"\",\"\",T3)","v":""},0,"F",2,"Fähigkeitsanalyse","Capability Study ",2]
[{"$f":"$A$317","v":""},0,"B",6,"Material Nr.","Part Nr."]
[{"$f":"$A$317","v":""},0,"F",6,"Zeichnungs-Nr.:","Drawing Nr."]
["",0,"K",6,"Prüfmittel","Testing equipment"]
["",0,"N",8,"Durchwahl","Phone"]
["",0,"Q",8,"Datum","Date"]
["",0,"B",8,"Benennung","Title"]
["",0,"F",8,"Charge Nr.","Batch Nr."]
["",0,"O",6,"Prüfer","Done by"]
["",0,"K",8,"Abteilung","Department"]
["",0,"B",10,"Graue Felder nicht ausfüllen\n","Do not fill up in grey fields"]
["",0,"F",10,"Änderungsnr.","Change Nr."]
["",0,"N",2,"Prozessfähigkeit","Process capability"]
["",0,"M",10,"Kavitäten & Kennzeichnung","Cavities & Marking"]
["",0,"B",11,"Bemerkung","Comments"]
["",0,"H",14,"Forderung","Requirement"]
["",0,"L",14,"obere Grenzwert","max. Specification"]
["",0,"N",14,"untere Grenzwert","min. Specification"]
["",0,"J",14,"Sollmaß","Nominal Value"]
["",0,"P",14,"Einheit","Unit"]
["",0,"H",17,"Anzahl Daten:","Data Quantity:"]
["",0,"H",18,"Mittelwert:","Average:"]
["",0,"H",19,"Standard Abweichung:","Standard Deviation:"]
["",0,"H",20,"Größter Wert:","Maximum Value:"]
["",0,"H",21,"Kleinster Wert:","Minimum Value:"]
["",0,"H",22,"Wölbung","Kurtosis"]
["",0,"K",22,"Schiefe","Skew"]
["",0,"H",26,"obere Grenzwert:","max. Specification:"]
["",0,"H",27,"untere Grenzwert:","min. Specification:"]
["",0,"H",30,"UG verletzung(ppm):","Out of USL (ppm):"]
["",0,"H",31,"UG verletzung(ppm):","Out of LSL (ppm):"]
["",0,"H",32,"Gesamt Abweichung:","Total out of Spec.:"]
["",0,"B",292,"Normalverteilung","Normal Distribution"]
[{"$f":"IF(T4=\"\",\"\",T4)","v":""},0,"F",2,"Fähigkeitsanalyse","Capability Study ",3]
[{"$f":"$A$350","v":""},0,"B",6,"Material Nr.","Part Nr."]
[{"$f":"$A$350","v":""},0,"F",6,"Zeichnungs-Nr.:","Drawing Nr."]
["",0,"K",6,"Prüfmittel","Testing equipment"]
["",0,"N",8,"Durchwahl","Phone"]
["",0,"Q",8,"Datum","Date"]
["",0,"B",8,"Benennung","Title"]
["",0,"F",8,"Charge Nr.","Batch Nr."]
["",0,"O",6,"Prüfer","Done by"]
["",0,"K",8,"Abteilung","Department"]
["",0,"B",10,"Graue Felder nicht ausfüllen\n","Do not fill up in grey fields"]
["",0,"F",10,"Änderungsnr.","Change Nr."]
["",0,"N",2,"Prozessfähigkeit","Process capability"]
["",0,"M",10,"Kavitäten & Kennzeichnung","Cavities & Marking"]
["",0,"B",11,"Bemerkung","Comments"]
["",0,"H",14,"Forderung","Requirement"]
["",0,"L",14,"obere Grenzwert","max. Specification"]
["",0,"N",14,"untere Grenzwert","min. Specification"]
["",0,"J",14,"Sollmaß","Nominal Value"]
["",0,"P",14,"Einheit","Unit"]
["",0,"H",17,"Anzahl Daten:","Data Quantity:"]
["",0,"H",18,"Mittelwert:","Average:"]
["",0,"H",19,"Standard Abweichung:","Standard Deviation:"]
["",0,"H",20,"Größter Wert:","Maximum Value:"]
["",0,"H",21,"Kleinster Wert:","Minimum Value:"]
["",0,"H",22,"Wölbung","Kurtosis"]
["",0,"K",22,"Schiefe","Skew"]
["",0,"H",26,"obere Grenzwert:","max. Specification:"]
["",0,"H",27,"untere Grenzwert:","min. Specification:"]
["",0,"H",30,"UG verletzung(ppm):","Out of USL (ppm):"]
["",0,"H",31,"UG verletzung(ppm):","Out of LSL (ppm):"]
["",0,"H",32,"Gesamt Abweichung:","Total out of Spec.:"]
["",0,"B",292,"Normalverteilung","Normal Distribution"]
[{"$f":"IF(T5=\"\",\"\",T5)","v":""},0,"F",2,"Fähigkeitsanalyse","Capability Study ",4]
[{"$f":"$A$383","v":""},0,"B",6,"Material Nr.","Part Nr."]
[{"$f":"$A$383","v":""},0,"F",6,"Zeichnungs-Nr.:","Drawing Nr."]
["",0,"K",6,"Prüfmittel","Testing equipment"]
["",0,"N",8,"Durchwahl","Phone"]
["",0,"Q",8,"Datum","Date"]
["",0,"B",8,"Benennung","Title"]
["",0,"F",8,"Charge Nr.","Batch Nr."]
["",0,"O",6,"Prüfer","Done by"]
["",0,"K",8,"Abteilung","Department"]
["",0,"B",10,"Graue Felder nicht ausfüllen\n","Do not fill up in grey fields"]
["",0,"F",10,"Änderungsnr.","Change Nr."]
["",0,"N",2,"Prozessfähigkeit","Process capability"]
["",0,"M",10,"Kavitäten & Kennzeichnung","Cavities & Marking"]
["",0,"B",11,"Bemerkung","Comments"]
["",0,"H",14,"Forderung","Requirement"]
["",0,"L",14,"obere Grenzwert","max. Specification"]
["",0,"N",14,"untere Grenzwert","min. Specification"]
["",0,"J",14,"Sollmaß","Nominal Value"]
["",0,"P",14,"Einheit","Unit"]
["",0,"H",17,"Anzahl Daten:","Data Quantity:"]
["",0,"H",18,"Mittelwert:","Average:"]
["",0,"H",19,"Standard Abweichung:","Standard Deviation:"]
["",0,"H",20,"Größter Wert:","Maximum Value:"]
["",0,"H",21,"Kleinster Wert:","Minimum Value:"]
["",0,"H",22,"Wölbung","Kurtosis"]
["",0,"K",22,"Schiefe","Skew"]
["",0,"H",26,"obere Grenzwert:","max. Specification:"]
["",0,"H",27,"untere Grenzwert:","min. Specification:"]
["",0,"H",30,"UG verletzung(ppm):","Out of USL (ppm):"]
["",0,"H",31,"UG verletzung(ppm):","Out of LSL (ppm):"]
["",0,"H",32,"Gesamt Abweichung:","Total out of Spec.:"]
["",0,"B",292,"Normalverteilung","Normal Distribution"]
[{"$f":"IF(T6=\"\",\"\",T6)","v":""},0,"F",2,"Fähigkeitsanalyse","Capability Study ",5]
[{"$f":"$A$416","v":""},0,"B",6,"Material Nr.","Part Nr."]
[{"$f":"$A$416","v":""},0,"F",6,"Zeichnungs-Nr.:","Drawing Nr."]
["",0,"K",6,"Prüfmittel","Testing equipment"]
["",0,"N",8,"Durchwahl","Phone"]
["",0,"Q",8,"Datum","Date"]
["",0,"B",8,"Benennung","Title"]
["",0,"F",8,"Charge Nr.","Batch Nr."]
["",0,"O",6,"Prüfer","Done by"]
["",0,"K",8,"Abteilung","Department"]
["",0,"B",10,"Graue Felder nicht ausfüllen\n","Do not fill up in grey fields"]
["",0,"F",10,"Änderungsnr.","Change Nr."]
["",0,"N",2,"Prozessfähigkeit","Process capability"]
["",0,"M",10,"Kavitäten & Kennzeichnung","Cavities & Marking"]
["",0,"B",11,"Bemerkung","Comments"]
["",0,"H",14,"Forderung","Requirement"]
["",0,"L",14,"obere Grenzwert","max. Specification"]
["",0,"N",14,"untere Grenzwert","min. Specification"]
["",0,"J",14,"Sollmaß","Nominal Value"]
["",0,"P",14,"Einheit","Unit"]
["",0,"H",17,"Anzahl Daten:","Data Quantity:"]
["",0,"H",18,"Mittelwert:","Average:"]
["",0,"H",19,"Standard Abweichung:","Standard Deviation:"]
["",0,"H",20,"Größter Wert:","Maximum Value:"]
["",0,"H",21,"Kleinster Wert:","Minimum Value:"]
["",0,"H",22,"Wölbung","Kurtosis"]
["",0,"K",22,"Schiefe","Skew"]
["",0,"H",26,"obere Grenzwert:","max. Specification:"]
["",0,"H",27,"untere Grenzwert:","min. Specification:"]
["",0,"H",30,"UG verletzung(ppm):","Out of USL (ppm):"]
["",0,"H",31,"UG verletzung(ppm):","Out of LSL (ppm):"]
["",0,"H",32,"Gesamt Abweichung:","Total out of Spec.:"]
["",0,"B",292,"Normalverteilung","Normal Distribution"]
[{"$f":"IF(T7=\"\",\"\",T7)","v":""},0,"F",2,"Fähigkeitsanalyse","Capability Study ",6]
[{"$f":"$A$449","v":""},0,"B",6,"Material Nr.","Part Nr."]
[{"$f":"$A$449","v":""},0,"F",6,"Zeichnungs-Nr.:","Drawing Nr."]
["",0,"K",6,"Prüfmittel","Testing equipment"]
["",0,"N",8,"Durchwahl","Phone"]
["",0,"Q",8,"Datum","Date"]
["",0,"B",8,"Benennung","Title"]
["",0,"F",8,"Charge Nr.","Batch Nr."]
["",0,"O",6,"Prüfer","Done by"]
["",0,"K",8,"Abteilung","Department"]
["",0,"B",10,"Graue Felder nicht ausfüllen\n","Do not fill up in grey fields"]
["",0,"F",10,"Änderungsnr.","Change Nr."]
["",0,"N",2,"Prozessfähigkeit","Process capability"]
["",0,"M",10,"Kavitäten & Kennzeichnung","Cavities & Marking"]
["",0,"B",11,"Bemerkung","Comments"]
["",0,"H",14,"Forderung","Requirement"]
["",0,"L",14,"obere Grenzwert","max. Specification"]
["",0,"N",14,"untere Grenzwert","min. Specification"]
["",0,"J",14,"Sollmaß","Nominal Value"]
["",0,"P",14,"Einheit","Unit"]
["",0,"H",17,"Anzahl Daten:","Data Quantity:"]
["",0,"H",18,"Mittelwert:","Average:"]
["",0,"H",19,"Standard Abweichung:","Standard Deviation:"]
["",0,"H",20,"Größter Wert:","Maximum Value:"]
["",0,"H",21,"Kleinster Wert:","Minimum Value:"]
["",0,"H",22,"Wölbung","Kurtosis"]
["",0,"K",22,"Schiefe","Skew"]
["",0,"H",26,"obere Grenzwert:","max. Specification:"]
["",0,"H",27,"untere Grenzwert:","min. Specification:"]
["",0,"H",30,"UG verletzung(ppm):","Out of USL (ppm):"]
["",0,"H",31,"UG verletzung(ppm):","Out of LSL (ppm):"]
["",0,"H",32,"Gesamt Abweichung:","Total out of Spec.:"]
["",0,"B",292,"Normalverteilung","Normal Distribution"]
[{"$f":"IF(T8=\"\",\"\",T8)","v":""},0,"F",2,"Fähigkeitsanalyse","Capability Study ",7]
[{"$f":"$A$482","v":""},0,"B",6,"Material Nr.","Part Nr."]
[{"$f":"$A$482","v":""},0,"F",6,"Zeichnungs-Nr.:","Drawing Nr."]
["",0,"K",6,"Prüfmittel","Testing equipment"]
["",0,"N",8,"Durchwahl","Phone"]
["",0,"Q",8,"Datum","Date"]
["",0,"B",8,"Benennung","Title"]
["",0,"F",8,"Charge Nr.","Batch Nr."]
["",0,"O",6,"Prüfer","Done by"]
["",0,"K",8,"Abteilung","Department"]
["",0,"B",10,"Graue Felder nicht ausfüllen\n","Do not fill up in grey fields"]
["",0,"F",10,"Änderungsnr.","Change Nr."]
["",0,"N",2,"Prozessfähigkeit","Process capability"]
["",0,"M",10,"Kavitäten & Kennzeichnung","Cavities & Marking"]
["",0,"B",11,"Bemerkung","Comments"]
["",0,"H",14,"Forderung","Requirement"]
["",0,"L",14,"obere Grenzwert","max. Specification"]
["",0,"N",14,"untere Grenzwert","min. Specification"]
["",0,"J",14,"Sollmaß","Nominal Value"]
["",0,"P",14,"Einheit","Unit"]
["",0,"H",17,"Anzahl Daten:","Data Quantity:"]
["",0,"H",18,"Mittelwert:","Average:"]
["",0,"H",19,"Standard Abweichung:","Standard Deviation:"]
["",0,"H",20,"Größter Wert:","Maximum Value:"]
["",0,"H",21,"Kleinster Wert:","Minimum Value:"]
["",0,"H",22,"Wölbung","Kurtosis"]
["",0,"K",22,"Schiefe","Skew"]
["",0,"H",26,"obere Grenzwert:","max. Specification:"]
["",0,"H",27,"untere Grenzwert:","min. Specification:"]
["",0,"H",30,"UG verletzung(ppm):","Out of USL (ppm):"]
["",0,"H",31,"UG verletzung(ppm):","Out of LSL (ppm):"]
["",0,"H",32,"Gesamt Abweichung:","Total out of Spec.:"]
["",0,"B",292,"Normalverteilung","Normal Distribution"]
[{"$f":"IF(T9=\"\",\"\",T9)","v":""},0,"F",2,"Fähigkeitsanalyse","Capability Study ",8]
[{"$f":"$A$515","v":""},0,"B",6,"Material Nr.","Part Nr."]
[{"$f":"$A$515","v":""},0,"F",6,"Zeichnungs-Nr.:","Drawing Nr."]
["",0,"K",6,"Prüfmittel","Testing equipment"]
["",0,"N",8,"Durchwahl","Phone"]
["",0,"Q",8,"Datum","Date"]
["",0,"B",8,"Benennung","Title"]
["",0,"F",8,"Charge Nr.","Batch Nr."]
["",0,"O",6,"Prüfer","Done by"]
["",0,"K",8,"Abteilung","Department"]
["",0,"B",10,"Graue Felder nicht ausfüllen\n","Do not fill up in grey fields"]
["",0,"F",10,"Änderungsnr.","Change Nr."]
["",0,"N",2,"Prozessfähigkeit","Process capability"]
["",0,"M",10,"Kavitäten & Kennzeichnung","Cavities & Marking"]
["",0,"B",11,"Bemerkung","Comments"]
["",0,"H",14,"Forderung","Requirement"]
["",0,"L",14,"obere Grenzwert","max. Specification"]
["",0,"N",14,"untere Grenzwert","min. Specification"]
["",0,"J",14,"Sollmaß","Nominal Value"]
["",0,"P",14,"Einheit","Unit"]
["",0,"H",17,"Anzahl Daten:","Data Quantity:"]
["",0,"H",18,"Mittelwert:","Average:"]
["",0,"H",19,"Standard Abweichung:","Standard Deviation:"]
["",0,"H",20,"Größter Wert:","Maximum Value:"]
["",0,"H",21,"Kleinster Wert:","Minimum Value:"]
["",0,"H",22,"Wölbung","Kurtosis"]
["",0,"K",22,"Schiefe","Skew"]
["",0,"H",26,"obere Grenzwert:","max. Specification:"]
["",0,"H",27,"untere Grenzwert:","min. Specification:"]
["",0,"H",30,"UG verletzung(ppm):","Out of USL (ppm):"]
["",0,"H",31,"UG verletzung(ppm):","Out of LSL (ppm):"]
["",0,"H",32,"Gesamt Abweichung:","Total out of Spec.:"]
["",0,"B",292,"Normalverteilung","Normal Distribution"]
[{"$f":"IF(T10=\"\",\"\",T10)","v":""},0,"F",2,"Fähigkeitsanalyse","Capability Study ",9]
[{"$f":"$A$548","v":""},0,"B",6,"Material Nr.","Part Nr."]
[{"$f":"$A$548","v":""},0,"F",6,"Zeichnungs-Nr.:","Drawing Nr."]
["",0,"K",6,"Prüfmittel","Testing equipment"]
["",0,"N",8,"Durchwahl","Phone"]
["",0,"Q",8,"Datum","Date"]
["",0,"B",8,"Benennung","Title"]
["",0,"F",8,"Charge Nr.","Batch Nr."]
["",0,"O",6,"Prüfer","Done by"]
["",0,"K",8,"Abteilung","Department"]
["",0,"B",10,"Graue Felder nicht ausfüllen\n","Do not fill up in grey fields"]
["",0,"F",10,"Änderungsnr.","Change Nr."]
["",0,"N",2,"Prozessfähigkeit","Process capability"]
["",0,"M",10,"Kavitäten & Kennzeichnung","Cavities & Marking"]
["",0,"B",11,"Bemerkung","Comments"]
["",0,"H",14,"Forderung","Requirement"]
["",0,"L",14,"obere Grenzwert","max. Specification"]
["",0,"N",14,"untere Grenzwert","min. Specification"]
["",0,"J",14,"Sollmaß","Nominal Value"]
["",0,"P",14,"Einheit","Unit"]
["",0,"H",17,"Anzahl Daten:","Data Quantity:"]
["",0,"H",18,"Mittelwert:","Average:"]
["",0,"H",19,"Standard Abweichung:","Standard Deviation:"]
["",0,"H",20,"Größter Wert:","Maximum Value:"]
["",0,"H",21,"Kleinster Wert:","Minimum Value:"]
["",0,"H",22,"Wölbung","Kurtosis"]
["",0,"K",22,"Schiefe","Skew"]
["",0,"H",26,"obere Grenzwert:","max. Specification:"]
["",0,"H",27,"untere Grenzwert:","min. Specification:"]
["",0,"H",30,"UG verletzung(ppm):","Out of USL (ppm):"]
["",0,"H",31,"UG verletzung(ppm):","Out of LSL (ppm):"]
["",0,"H",32,"Gesamt Abweichung:","Total out of Spec.:"]
["",0,"B",292,"Normalverteilung","Normal Distribution"]
[{"$f":"IF(T11=\"\",\"\",T11)","v":""},0,"F",2,"Fähigkeitsanalyse","Capability Study ",10]
[{"$f":"$A$581","v":""},0,"B",6,"Material Nr.","Part Nr."]
[{"$f":"$A$581","v":""},0,"F",6,"Zeichnungs-Nr.:","Drawing Nr."]
["",0,"K",6,"Prüfmittel","Testing equipment"]
["",0,"N",8,"Durchwahl","Phone"]
["",0,"Q",8,"Datum","Date"]
["",0,"B",8,"Benennung","Title"]
["",0,"F",8,"Charge Nr.","Batch Nr."]
["",0,"O",6,"Prüfer","Done by"]
["",0,"K",8,"Abteilung","Department"]
["",0,"B",10,"Graue Felder nicht ausfüllen\n","Do not fill up in grey fields"]
["",0,"F",10,"Änderungsnr.","Change Nr."]
["",0,"N",2,"Prozessfähigkeit","Process capability"]
["",0,"M",10,"Kavitäten & Kennzeichnung","Cavities & Marking"]
["",0,"B",11,"Bemerkung","Comments"]
["",0,"H",14,"Forderung","Requirement"]
["",0,"L",14,"obere Grenzwert","max. Specification"]
["",0,"N",14,"untere Grenzwert","min. Specification"]
["",0,"J",14,"Sollmaß","Nominal Value"]
["",0,"P",14,"Einheit","Unit"]
["",0,"H",17,"Anzahl Daten:","Data Quantity:"]
["",0,"H",18,"Mittelwert:","Average:"]
["",0,"H",19,"Standard Abweichung:","Standard Deviation:"]
["",0,"H",20,"Größter Wert:","Maximum Value:"]
["",0,"H",21,"Kleinster Wert:","Minimum Value:"]
["",0,"H",22,"Wölbung","Kurtosis"]
["",0,"K",22,"Schiefe","Skew"]
["",0,"H",26,"obere Grenzwert:","max. Specification:"]
["",0,"H",27,"untere Grenzwert:","min. Specification:"]
["",0,"H",30,"UG verletzung(ppm):","Out of USL (ppm):"]
["",0,"H",31,"UG verletzung(ppm):","Out of LSL (ppm):"]
["",0,"H",32,"Gesamt Abweichung:","Total out of Spec.:"]
[{"$f":"$A$581","v":""},0,"B",292,"Normalverteilung","Normal Distribution"]

{"sheet":"Drop Down","index":11,"n_rows":13,"n_cols":5,"rows_kept":13,"cut":false,"hidden":true,"merged":[]}
[null,null,null,"Bitte geben Sie hier neue Prüfmittel ein, damit diese in der Dropdown-Option im Prüfergebnis Blatt zur Verfügung stehen. \n\nPlease enter new test equipment here to make it available in the drop-down option in the Inspection  results worksheet"]
[null,"Entscheidung",null,"Prüfmittel"]
[null,"I.O.",null,"BMS","Mügelmessschraube"]
[null,"?",null,"MES","Messschieber"]
[null,"Prozess-Optimierung",null,"KEY","Keyence"]
[null,"ZA",null,"MU","Messuhr"]
[null,"WK",null,"visuell"]
[null,null,null,"KMG"]
[null,null,null,"Wenzel"]
[null,null,null,"OMM"]
[null,null,null,"Prüfstiff"]
[null,null,null,"CT-Scan"]
[null,null,null,"KMG","Koordinatenmessmaschine"]

{"sheet":"Zukaufteile Datenblatt","index":12,"n_rows":52,"n_cols":7,"rows_kept":52,"cut":false,"hidden":false,"merged":[[44,4,44,6],[49,3,49,6]]}
[null,"1. Firmen- und Produktbezeichnung"]
[]
[null," 1.1 Angaben zum Herstellen/Lieferanten",null,null,null,"1.2 Angabe zum Produkt"]
[]
[null," Name:",null,null,null,"Bauteil:"]
[null," Straße/Postfach:",null,null,null,"Musterbericht-Nr. "]
[null," Nat.-Kennz./PLZ/Ort:",null,null,null,"ZSB-Nr.:"]
[null," Lieferanten-Nummer:",null,null,null,"Bestell-Nr.:"]
[null," Ansprechpartner mit",null,null,null,"ArtikelNr.:"]
[null," Telefon/Telefax:",null,null,null,"     "]
[null,null,null,null,null,"Lieferschein-Nr.:"]
[null,null,null,null,null,"Änderungsstand:"]
[null,null,null,null,null,"Datum:",{"$f":"IF(ISBLANK('Allgemeine Projektangaben'!C2),\"\",'Allgemeine Projektangaben'!C2)","v":""}]
[null," Verantwortliche Unterschriften"]
[]
[null," 2. Sicherheit und Umwelt"]
[]
[null," Stoffe, die einem gesetzlichen Anwendungsverbot unterliegen, dürfen nicht enthalten sein!"]
[null," Beachte: VDA-Liste für deklarationspflichtige Stoffe"]
[]
[null," Zutreffendes bitte ankreuzen."]
[]
[null,null,"Enthält das Bauteil Stoffe mit einem Gefährlichkeitsmerkmal gemäß"]
[null,null,"ChemG/GefStoffV?"]
[null,null,"      Nein"]
[null,null,"      Ja","(Kennzeichnungen gem. GefStoffV und Konzentrationen sind unter “Inhaltsstoffe“ anzugeben)"]
[]
[null,null,"Können beim sachgemäßen Umgang mit dem Bauteil Gefahrenstoffe entstehen oder"]
[null,null,"freigesetzt werden?"]
[null,null,"(Beachte: VDA Liste für Deklarationspflichtige Stoffe) "]
[]
[null,null,"      Nein"]
[null,null,"      Ja","(Punkt 10 der EG-Sicheheitsdatenblattes ist auszufüllen)"]
[]
[null,null,"Ist das Bauteil ein Gefahrengut im Sinne des Verkehrsrechtes (Transportrechtes)?"]
[null,null,"      Nein"]
[null,null,"      Ja","(Punkt 14 des EG-Sicherheitsdatenblattes ist auszufüllen)"]
[]
[null,null,"Enthält das Bauteil wassergefährdende Stoffe gem. Wasserrecht?"]
[null,null,"      Nein"]
[null,null,"      Ja","(Wassergefährdungsklasse und Menge ist anzugeben)"]
[]
[null,null,"Ist das Bauteil mit Bioziden ausgerüstet?"]
[null,null,"     Nein"]
[null,null,"     Ja","(Gehalte > 0,1 % sind anzugeben)"]
[]
[null,null,"Kann aus dem Bauteil nach Entfall der Nutzung oder Verwendung ein Abfall entstehen,"]
[null,null,"dem eine Schlüsselnummer (EAK-Code) zugeordnet werden kann? "]
[null,null,"      Nein"]
[null,null,"      Ja"]
[]
[null," Die umseitige Tabelle ist vollständig auszufüllen."]

{"sheet":"Zukaufteile Tabelle","index":13,"n_rows":8,"n_cols":8,"rows_kept":8,"cut":false,"hidden":false,"merged":[[0,0,0,7],[2,0,2,7],[4,3,4,4],[5,3,5,4],[4,5,4,6],[5,5,5,6]]}
["Stoffe, die einem gesetzlichen Anwendungsverbot unterliegen, dürfen nicht enthalten sein! Es müssen auch Gefahrensoffe angegeben werden, die bei Gebrauch entstehen oder freigesetzt werden können. "]
[]
["Beachte: VDA-Liste für deklarationspflichtige Stoffe! "]
[]
["3. Teilecharakterisierung:",null,"ZSB-Nr.:",null,null," Musterbericht-Nr.: VDA "]
[null,null,"Bennenung:",null,null," "]
[]
["Teile-Nr./ Werkstoff-Nr.","Teilebezeichnung","ZSB-Komponente","Masse [g]","Material/ Herstellerbezogene Produktbezeichnung","Inhaltsstoffe CAS-Nr.","Inhaltsstoffe Stoffbezeichnung","Gehalt [%]"]

{"sheet":"Anlage zu Werkstoff","index":14,"n_rows":17,"n_cols":6,"rows_kept":17,"cut":false,"hidden":false,"merged":[[15,1,16,4],[1,3,1,4],[0,3,0,4],[3,2,3,3],[3,4,3,5]]}
[null,null,"Sach-Nr.",null,null,"Kunden-Nr."]
[null,null,null,"Anlage zu Werkstoff-EMPB-Kunststoffe"]
[]
[null,null,"POS.",null,"POS."]
[null,"PRÜFPARAMETER","SOLL","IST","SOLL","IST"]
[null,"Teile - Benennung"]
[null,"Werkstoff - Hersteller"]
[null,"Werkstoff-Bezeichnung"]
[null,"Dichte"]
[null,"Schmelzbereich / Glasübergangtemperatur"]
[null,"Glührückstand"]
[null,"Härte","*----------","*----------","*----------","*----------"]
[null,"Warmlagerung (Nachschwindung)"]
[null,"Kerbschlagzähigkeit","*----------","*----------","*----------","*----------"]
[null,"Oberfläche","Frei von Beschädigungen",null,"Frei von Beschädigungen"]
[null,"Bemerkungen:     *.) Kann wegen zu geringer Wanddicken nicht DIN-gerecht geprüft werden.",null,null,null,{"$f":"IF(ISBLANK('Allgemeine Projektangaben'!C2),\"\",CONCATENATE(\"Datum: \",'Allgemeine Projektangaben'!C2))","v":""}]
[null,null,null,null,null,{"$f":"IF(ISBLANK('Allgemeine Projektangaben'!C32),\"\",CONCATENATE(\"Name: \",'Allgemeine Projektangaben'!C32))","v":""}]